{"text_format":"1","workbook":"xlsx","n_sheets":15,"sheets":["TERF","TERFDD","Cover","A-1","A-2","A-3","A-4","A-5","A-6","B-C","D","VL123","Sheet1","L123","L145"],"not_rendered":{"charts":0,"images":2,"macros":1,"external_links":1,"defined_names":81,"comments":0,"pivot_tables":0},"unopened":[],"bounds":{"document_bytes":16777216,"sheet_cells":100000,"rows_first":2000,"rows_last":500,"rows_between":2000,"halvings":0,"cell_chars":16384,"cell_head_chars":4096},"cells_cut":0,"cells_raw":0,"read":"whole","date_system":"1900"}

{"sheet":"TERF","index":0,"n_rows":69,"n_cols":58,"rows_kept":69,"cut":false,"hidden":false,"merged":[[0,0,3,21],[0,36,3,51],[0,52,0,55],[5,0,5,55],[6,0,6,55],[8,0,8,56],[15,50,15,55],[16,40,16,43],[16,44,16,49],[16,50,16,55],[17,0,17,9],[17,10,17,55],[10,0,10,10],[10,11,10,54],[12,0,12,10],[12,11,12,54],[14,0,14,55],[15,0,16,9],[15,10,16,31],[15,32,16,39],[15,40,15,43],[15,44,15,49],[18,0,19,9],[18,10,19,55],[20,0,21,9],[20,10,21,31],[20,32,21,39],[20,40,20,43],[20,44,20,49],[20,50,20,55],[21,40,21,43],[21,44,21,49],[25,0,25,9],[25,10,25,31],[25,32,25,39],[25,40,25,55],[26,0,26,9],[26,10,26,55],[21,50,21,55],[23,0,23,55],[24,0,24,9],[24,10,24,31],[24,32,24,39],[24,40,24,55],[27,0,27,14],[27,15,27,55],[28,0,28,18],[28,19,28,20],[28,22,28,28],[28,29,28,30],[28,32,28,39],[28,40,28,41],[28,43,28,55],[30,0,30,55],[31,0,32,4],[31,5,31,8],[31,9,31,14],[31,15,31,20],[31,21,32,22],[31,24,32,30],[31,31,32,32],[31,34,32,55],[32,5,32,8],[33,31,33,32],[33,33,33,43],[33,44,33,46],[33,47,33,55],[34,0,34,30],[34,31,34,55],[32,9,32,14],[32,15,32,20],[33,0,33,1],[33,2,33,20],[33,21,33,22],[33,23,33,30],[38,13,38,55],[35,44,35,46],[35,47,35,55],[36,0,36,55],[35,0,35,1],[35,2,35,20],[35,21,35,22],[35,23,35,30],[35,31,35,32],[35,33,35,43],[37,0,37,12],[37,13,37,55],[38,0,38,12],[53,0,53,11],[53,12,53,22],[53,23,53,33],[53,34,53,44],[53,45,53,55],[39,0,39,12],[39,13,39,55],[40,0,40,12],[40,13,40,55],[41,0,41,12],[41,13,41,55],[42,0,42,12],[42,13,42,55],[43,0,43,12],[43,13,43,55],[44,0,44,55],[45,0,45,14],[45,15,45,22],[45,23,45,40],[45,41,45,55],[46,0,46,11],[46,12,46,22],[46,23,46,33],[46,34,46,44],[56,45,56,55],[54,0,54,11],[54,12,54,22],[54,23,54,33],[54,34,54,44],[54,45,54,55],[55,0,55,11],[55,12,55,22],[55,23,55,33],[55,34,55,44],[55,45,55,55],[56,0,56,11],[56,12,56,22],[56,23,56,33],[56,34,56,44],[68,3,68,28],[68,30,68,55],[58,0,58,55],[59,0,59,53],[59,54,59,55],[61,0,61,55],[62,0,63,1],[63,3,65,55],[67,3,67,28],[67,30,67,54],[46,45,46,55],[47,0,47,11],[47,12,47,22],[47,23,47,33],[47,34,47,44],[47,45,47,55],[52,1,52,2],[52,3,52,55],[48,0,48,11],[48,12,48,22],[48,23,48,33],[48,34,48,44],[48,45,48,55],[49,0,49,11],[49,12,49,22],[49,23,49,33],[49,34,49,44],[49,45,49,55],[51,0,51,55]]}
["SOCIAL DEVELOPMENT\nHealth Services Program\nP.O. Box 5500, Fredericton, N.B., E3B 5G4\nToll free number: 1-844-551-3015\n",null,null,null,null,null,null,null,null,null,null,null,null,null,null,null,null,null,null,null,null,null,null,null,null,null,null,null,null,null,null,null,null,null,null,null,"DÉVELOPPEMENT SOCIAL\nProgramme des services de santé\nC.P. 5500, Fredericton N.-B., E3B 5G4\nNuméro sans frais: 1-844-551-3015\n",null,null,null,null,null,null,null,null,null,null,null,null,null,null,null,null,null,null,null,null,{"$f":"K16","v":0}]
[null,null,null,null,null,null,null,null,null,null,null,null,null,null,null,null,null,null,null,null,null,null,null,null,null,null,null,null,null,null,null,null,null,null,null,null,null,null,null,null,null,null,null,null,null,null,null,null,null,null,null,null,null,null,null,null,null,{"$f":"K21","v":0}]
[]
[]
[]
["MOBILITY AND ADAPTIVE EQUIPMENT LOAN PROGRAM"]
["COMPLEX ADAPTIVE AIDS PROGRAM TRIAL EQUIPMENT REQUEST FORM (CA-TERF)"]
[]
["Send completed trial equipment request form to: "]
[]
["Supplier/Agency:"]
[]
["Supplier Sales Rep:"]
[]
["CLIENT INFORMATION"]
["Client name:",null,null,null,null,null,null,null,null,null,null,null,null,null,null,null,null,null,null,null,null,null,null,null,null,null,null,null,null,null,null,null,"Date of birth:"]
[null,null,null,null,null,null,null,null,null,null,null,null,null,null,null,null,null,null,null,null,null,null,null,null,null,null,null,null,null,null,null,null,null,null,null,null,null,null,null,null,"DD",null,null,null,"MM",null,null,null,null,null,"YYYY"]
["Phone number:"]
["Complete address:"]
[]
["Health card ID#",null,null,null,null,null,null,null,null,null,null,null,null,null,null,null,null,null,null,null,null,null,null,null,null,null,null,null,null,null,null,null,"Expiry date:"]
[null,null,null,null,null,null,null,null,null,null,null,null,null,null,null,null,null,null,null,null,null,null,null,null,null,null,null,null,null,null,null,null,null,null,null,null,null,null,null,null,"DD",null,null,null,"MM",null,null,null,null,null,"YYYY"]
[]
["THERAPIST INFORMATION"]
["Name:",null,null,null,null,null,null,null,null,null,null,null,null,null,null,null,null,null,null,null,null,null,null,null,null,null,null,null,null,null,null,null,"Agency/Office"]
["Telephone:",null,null,null,null,null,null,null,null,null,null,null,null,null,null,null,null,null,null,null,null,null,null,null,null,null,null,null,null,null,null,null,"Fax:"]
["E-mail:"]
["Alternative contact name:"]
["Preferred method of Communication:",null,null,null,null,null,null,null,null,null,null,null,null,null,null,null,null,null,null,null,null,null,"E-mail",null,null,null,null,null,null,null,null,null,"Phone",null,null,null,null,null,null,null,null,null,null,"Either"]
[]
["SUPPLIER COMPLEX ADAPTIVE AIDS – EQUIPMENT REQUEST DETAILS"]
["DATE",null,null,null,null,null,null,null,null,null,null,null,null,null,null,null,null,null,null,null,null,null,null,null,"URGENT",null,null,null,null,null,null,null,null,null,"Equipment NOT available from the recycling agent."]
[null,null,null,null,null,"DD",null,null,null,"MM",null,null,null,null,null,"YYYY"]
[null,null,"Trial equipment",null,null,null,null,null,null,null,null,null,null,null,null,null,null,null,null,null,null,null,null,"Quote",null,null,null,null,null,null,null,null,null,"Amended Request      "]
["Substitutions acceptable for items requested below?",null,null,null,null,null,null,null,null,null,null,null,null,null,null,null,null,null,null,null,null,null,null,null,null,null,null,null,null,null,null,"Request for Cost sharing?"]
[null,null,"Yes (Call to discuss with therapist)",null,null,null,null,null,null,null,null,null,null,null,null,null,null,null,null,null,null,null,null,"No",null,null,null,null,null,null,null,null,null,"Yes",null,null,null,null,null,null,null,null,null,null,null,null,null,"No"]
["Complex Adaptive Aids"]
["Type of Equipment",null,null,null,null,null,null,null,null,null,null,null,null,"Specifications: (Make/Model/Size/Options)"]
[]
[]
[]
[]
[]
[]
["RECYCLING AGENT COMPLEX ADAPTIVE AIDS – TRANSFERS ONLY"]
["Initials of the previous client:",null,null,null,null,null,null,null,null,null,null,null,null,null,null,null,null,null,null,null,null,null,null,"Health card # of the previous client:"]
["Equipment Make / Model",null,null,null,null,null,null,null,null,null,null,null,"Size / Dimension",null,null,null,null,null,null,null,null,null,null,"Equipment Number",null,null,null,null,null,null,null,null,null,null,"Serial Number",null,null,null,null,null,null,null,null,null,null,"Purchase date"]
[]
[]
[]
[]
["RECYCLING AGENT COMPLEX ADAPTIVE AIDS – EQUIPMENT REQUEST DETAILS"]
[null,null,null,"URGENT REQUEST (RECYCLING AGENT ONLY)"]
["Equipment Make / Model",null,null,null,null,null,null,null,null,null,null,null,"Size / Dimension",null,null,null,null,null,null,null,null,null,null,"Equipment Number",null,null,null,null,null,null,null,null,null,null,"Serial Number",null,null,null,null,null,null,null,null,null,null,"Purchase date"]
[]
[]
[]
[]
["RECYCLING AGENT SHIPPING INSTRUCTIONS"]
[]
[]
["THERAPIST'S SIGNATURE"]
[]
[null,null,null,"By signing and dating this request, I understand that the trial period with the Recycling Agent’s and Supplier’s equipment is for a maximum of 14 days and that it is my responsibility to notify Health Services, ESNB and the Supplier (if applicable) immediately following the trial period to indicate if the trial was successful or not.  I also understand that only the most cost effective equipment to meet my client’s current basic needs within the parameters of the MAELP will be considered for approval, even as an exception. "]
[]
[]
[]
[]
[null,null,null,"Therapist name",null,null,null,null,null,null,null,null,null,null,null,null,null,null,null,null,null,null,null,null,null,null,null,null,null,null,"Date"]

{"sheet":"TERFDD","index":1,"n_rows":26,"n_cols":5,"rows_kept":26,"cut":false,"hidden":true,"merged":[]}
["FIRSTONE",null,"TypeFoot",null,"FootrestTERF"]
["National Seating and Mobility, Moncton    -- 467 Adelard Savoie BLVD, Dieppe NB, E1A 7E7 ",null,"Adjustable Angle Composite",null,60]
["National Seating and Mobility, Fredericton  -- 1142 Smythe St., Fredericton NB, E3B 3H5 ",null,"Adjustable Composite  Aluminum",null,70]
["Harding Medical Supplies -- 175 Caledonia Rd Unit #2, Moncton NB, E1H 2S5",null,"NONE",null,80]
["Lawtons Home Health Care, Moncton -- 800 Mountain Rd, Moncton, NB, E1C 2R4",null,null,null,90]
["Lawtons Home Health Care, Saint John -- 107 Catherwood Street, Saint John NB, E2M 5J7",null,null,null,"Elevating"]
["Restair -- 127 Brunswick St, Dalhousie NB, E8C 1G7",null,null,null,"Foot platform"]
["Tango Medical, Fredericton -- 100 Woodside Lane B103, Fredericton NB, E3C 2R9",null,null,null,"NONE"]
["Tango Medical, Moncton -- 355 Elmwood Drive, Moncton NB, E1A 1X6"]
["Tango Medical, Saint John -- 358 Rothesay Avenue Suite 701, Saint John NB, E2J 2C4"]
[]
[]
[]
[]
[null,null,"HS Staff"]
["RecAgent",null,"CA – ALL Client ID #’s:  Angela Mullins -- angela.mullins@gnb.ca --  Fax to Email: 506-444-4629"]
["National Seating and Mobility, Moncton (506) 854-2548 -- moncton@nsm-seating.com"]
["National Seating and Mobility, Fredericton (506) 854-2548 -- fredericton@nsm-seating.com"]
["Harding Medical, Moncton (506) 855-5113 -- doreen.sullivan@HardingMedical.com"]
["Lawtons Home Health Care, Moncton (506) 855-1838 -- Carolyne.Parent@sobeys.com"]
["Lawtons Home Health Care, Saint John (506) 657-9742 -- Anne.Spencer@sobeys.com"]
["Recycling Agent (506) 457-2863 -- loans@easterseals.nb.ca"]
["Restair Ltd (506) 684-5345 --  info@restair.ca"]
["Tango Medical, Fredericton  (506) 452-7449, c.bradshaw@tangomedical.ca"]
["Tango Medical, Moncton  (506) 855-8843, a.robichaud@tangomedical.ca"]
["Tango Medical, Saint John   (506) 634-7404, w.richard@tangomedical.ca"]

{"sheet":"Cover","index":2,"n_rows":47,"n_cols":59,"rows_kept":47,"cut":false,"hidden":false,"merged":[[5,0,5,55],[6,0,6,55],[35,10,35,36],[35,37,35,54],[32,10,32,36],[32,37,32,54],[33,10,33,36],[33,37,33,54],[34,10,34,36],[34,37,34,54],[8,0,8,56],[10,0,10,10],[10,11,10,54],[13,0,13,55],[14,0,14,8],[14,9,14,27],[0,52,0,55],[0,0,3,21],[0,36,3,51],[45,1,45,2],[41,26,41,27],[42,26,42,27],[44,26,44,27],[45,6,45,24],[39,0,39,55],[41,1,41,2],[42,1,42,2],[43,1,43,2],[44,1,44,2],[36,10,36,36],[36,37,36,54],[37,10,37,36],[14,28,14,39],[14,40,14,55],[15,0,15,8],[15,9,15,27],[15,28,15,39],[15,40,15,55],[16,0,16,8],[16,9,16,55],[17,0,17,8],[17,9,17,27],[17,28,17,39],[17,40,17,55],[18,0,18,8],[18,9,18,27],[18,28,18,39],[18,40,18,55],[20,0,20,55],[21,0,22,6],[21,7,22,27],[21,28,21,39],[21,40,21,43],[21,44,21,49],[21,50,21,55],[22,28,22,39],[22,40,22,43],[22,44,22,49],[22,50,22,55],[23,50,23,55],[24,0,24,6],[24,7,24,27],[24,28,24,39],[24,40,24,43],[24,44,24,49],[24,50,24,55],[23,0,23,6],[23,7,23,27],[23,28,23,39],[23,40,23,43],[23,44,23,49],[25,0,26,6],[25,7,26,27],[25,28,25,38],[25,39,25,55],[26,28,26,38],[26,39,26,55],[28,0,28,55],[29,0,29,9],[29,10,29,17],[29,19,29,30],[29,31,29,55],[43,26,43,27],[30,0,30,9],[30,10,30,17],[30,19,30,30],[30,31,30,55],[31,0,31,18],[31,19,31,22],[31,23,31,24],[31,25,31,49],[31,50,31,53],[31,54,31,55],[37,37,37,54],[32,0,37,9]]}
["SOCIAL DEVELOPMENT\nHealth Services Program\nP.O. Box 5500, Fredericton, N.B., E3B 5G4\nToll free number: 1-844-551-3015\n",null,null,null,null,null,null,null,null,null,null,null,null,null,null,null,null,null,null,null,null,null,null,null,null,null,null,null,null,null,null,null,null,null,null,null,"DÉVELOPPEMENT SOCIAL\nProgramme des services de santé\nC.P. 5500, Fredericton N.-B., E3B 5G4\nNuméro sans frais: 1-844-551-3015\n",null,null,null,null,null,null,null,null,null,null,null,null,null,null,null,null,null,null,null,null,null,{"$f":"Cover!$H$22","v":0}]
[null,null,null,null,null,null,null,null,null,null,null,null,null,null,null,null,null,null,null,null,null,null,null,null,null,null,null,null,null,null,null,null,null,null,null,null,null,null,null,null,null,null,null,null,null,null,null,null,null,null,null,null,null,null,null,null,null,null,{"$f":"Cover!$H$24","v":0}]
[]
[]
[]
["MOBILITY AND ADAPTIVE EQUIPMENT LOAN PROGRAM"]
["COMPLEX ADAPTIVE AIDS EQUIPMENT REQUEST FORM (CA ERF)"]
[]
["Send Completed Equipment Request Form To: "]
[]
["Program Administrator:"]
[]
[]
["THERAPIST INFORMATION"]
["Date:",null,null,null,null,null,null,null,null,null,null,null,null,null,null,null,null,null,null,null,null,null,null,null,null,null,null,null,"Number of pages:"]
["Therapist name:",null,null,null,null,null,null,null,null,null,null,null,null,null,null,null,null,null,null,null,null,null,null,null,null,null,null,null,"Phone:"]
["Prescriber #"]
["Email:",null,null,null,null,null,null,null,null,null,null,null,null,null,null,null,null,null,null,null,null,null,null,null,null,null,null,null,"Fax: "]
["Agency / Office:",null,null,null,null,null,null,null,null,null,null,null,null,null,null,null,null,null,null,null,null,null,null,null,null,null,null,null,"Alternate contact name:"]
[]
["CLIENT INFORMATION"]
["Client name:",null,null,null,null,null,null,null,null,null,null,null,null,null,null,null,null,null,null,null,null,null,null,null,null,null,null,null,"Date of birth:"]
[null,null,null,null,null,null,null,null,null,null,null,null,null,null,null,null,null,null,null,null,null,null,null,null,null,null,null,null,null,null,null,null,null,null,null,null,null,null,null,null,"DD",null,null,null,"MM",null,null,null,null,null,"YYYY"]
["Health card #:",null,null,null,null,null,null,null,null,null,null,null,null,null,null,null,null,null,null,null,null,null,null,null,null,null,null,null,"Health Card Exp date:"]
["Medicare #:",null,null,null,null,null,null,null,null,null,null,null,null,null,null,null,null,null,null,null,null,null,null,null,null,null,null,null,null,null,null,null,null,null,null,null,null,null,null,null,"DD",null,null,null,"MM",null,null,null,null,null,"YYYY"]
["Complete address:",null,null,null,null,null,null,null,null,null,null,null,null,null,null,null,null,null,null,null,null,null,null,null,null,null,null,null,"Phone:"]
[null,null,null,null,null,null,null,null,null,null,null,null,null,null,null,null,null,null,null,null,null,null,null,null,null,null,null,null,"Language of choice:"]
[]
["REQUEST DETAILS"]
["Request status:",null,null,null,null,null,null,null,null,null,null,null,null,null,null,null,null,null,null,"Medical diagnosis"]
["Urgent request:",null,null,null,null,null,null,null,null,null,null,null,null,null,null,null,null,null,null,"If yes, indicate reason:",null,null,null,null,null,null,null,null,null,null,null,"Client at severe risk to self and others"]
["Is the client awaiting placement?",null,null,null,null,null,null,null,null,null,null,null,null,null,null,null,null,null,null,null,null,null,null,null,null,"If yes, is the scheduled placement date within 30 days?"]
["Type of equipment request:",null,null,null,null,null,null,null,null,null,"Part A-1 – Application for Equipment Loan"]
[null,null,null,null,null,null,null,null,null,null,"Part A-2 – Application for Cost Sharing"]
[null,null,null,null,null,null,null,null,null,null,"Part A-3 – Application for Equipment Maintenance"]
[null,null,null,null,null,null,null,null,null,null,"Part A-4 – Application for Purchase of Trial Equipment"]
[null,null,null,null,null,null,null,null,null,null,"Part A-5 – Application for Equipment Transfer"]
[null,null,null,null,null,null,null,null,null,null,"Part A-6 – Application for Equipment for Multiple Users"]
[]
["ADDITIONAL DOCUMENTS INCLUDED"]
[]
[null,null,null,"Part D",null,null,null,null,null,null,null,null,null,null,null,null,null,null,null,null,null,null,null,null,null,null,null,null,"Estimate"]
[null,null,null,"Manufacturer's order form",null,null,null,null,null,null,null,null,null,null,null,null,null,null,null,null,null,null,null,null,null,null,null,null,"Quote on Health Services Claim form"]
[null,null,null,"Proof of MSRP",null,null,null,null,null,null,null,null,null,null,null,null,null,null,null,null,null,null,null,null,null,null,null,null,"Quote for rental on Health Services Claim form"]
[null,null,null,"Private insurance predetermination letter",null,null,null,null,null,null,null,null,null,null,null,null,null,null,null,null,null,null,null,null,null,null,null,null,"Landlord permission to install letter (rental units only)"]
[null,null,null,"Other",null,null,null,null,null,null,null,null,null,null,null,null,null,null,null,null,null,null,null,null,null,null,null,null,"Lift installation diagram including room dimensions"]
[null,null,null,null,null,null,null,null,null,null,null,null,null,null,null,null,null,null,null,null,null,null,null,null,null,null,null,null,"proposed tracking and permanent fixtures"]

{"sheet":"A-1","index":3,"n_rows":183,"n_cols":59,"rows_kept":183,"cut":false,"hidden":true,"merged":[[175,1,179,54],[132,0,132,21],[132,22,132,41],[132,42,132,55],[133,0,134,14],[133,15,134,55],[129,0,129,21],[129,22,129,41],[129,42,129,55],[130,0,130,21],[130,22,130,41],[130,42,130,55],[131,0,131,21],[131,22,131,41],[131,42,131,55],[173,0,173,55],[164,0,165,16],[164,17,165,25],[164,26,165,36],[164,37,165,55],[166,0,167,16],[166,17,167,25],[166,26,167,36],[166,37,167,55],[126,0,126,21],[126,22,126,41],[126,42,126,55],[127,0,127,21],[127,22,127,41],[127,42,127,55],[128,0,128,21],[128,22,128,41],[128,42,128,55],[121,0,122,10],[121,11,122,24],[121,25,122,36],[121,37,122,55],[123,0,123,55],[124,0,124,21],[124,22,124,41],[124,42,124,55],[125,0,125,21],[125,22,125,41],[125,42,125,55],[115,0,116,14],[115,15,116,55],[119,0,119,9],[119,10,119,23],[119,25,119,36],[119,37,119,55],[120,0,120,5],[120,6,120,23],[120,25,120,36],[120,37,120,55],[112,0,112,21],[112,22,112,41],[112,42,112,55],[113,0,113,21],[113,22,113,41],[113,42,113,55],[114,0,114,21],[114,22,114,41],[114,42,114,55],[109,0,109,21],[109,22,109,41],[109,42,109,55],[110,0,110,21],[110,22,110,41],[110,42,110,55],[111,0,111,21],[111,22,111,41],[111,42,111,55],[106,0,106,21],[106,22,106,41],[106,42,106,55],[107,0,107,21],[107,22,107,41],[107,42,107,55],[108,0,108,21],[108,22,108,41],[108,42,108,55],[102,0,102,5],[102,6,102,23],[102,25,102,36],[102,37,102,55],[103,0,104,10],[103,11,104,24],[103,25,104,36],[103,37,104,55],[105,0,105,55],[95,0,95,21],[95,22,95,41],[95,42,95,55],[96,0,96,21],[96,22,96,41],[96,42,96,55],[97,0,98,14],[97,15,98,55],[101,0,101,9],[101,10,101,23],[101,25,101,36],[101,37,101,55],[92,0,92,21],[92,22,92,41],[92,42,92,55],[93,0,93,21],[93,22,93,41],[93,42,93,55],[94,0,94,21],[94,22,94,41],[94,42,94,55],[88,42,88,55],[89,0,89,21],[89,22,89,41],[89,42,89,55],[90,0,90,21],[90,22,90,41],[90,42,90,55],[91,0,91,21],[91,22,91,41],[91,42,91,55],[88,22,88,41],[16,58,16,69],[10,10,10,23],[10,25,10,36],[11,25,11,36],[10,37,10,55],[10,0,10,9],[0,0,3,21],[0,36,3,51],[7,0,7,55],[8,0,8,55],[5,0,5,6],[5,7,5,27],[5,28,5,35],[5,36,5,55],[0,52,0,55],[15,0,15,21],[15,22,15,41],[15,42,15,55],[11,37,11,55],[12,25,13,36],[12,37,13,55],[12,0,13,10],[12,11,13,24],[11,0,11,5],[14,0,14,55],[11,6,11,23],[23,42,23,55],[24,0,25,14],[24,15,25,55],[16,42,16,55],[17,42,17,55],[18,42,18,55],[19,42,19,55],[20,42,20,55],[21,42,21,55],[22,42,22,55],[16,0,16,21],[17,0,17,21],[18,0,18,21],[19,0,19,21],[20,0,20,21],[21,0,21,21],[22,0,22,21],[23,0,23,21],[16,22,16,41],[17,22,17,41],[18,22,18,41],[19,22,19,41],[30,0,31,10],[30,11,31,24],[30,25,31,36],[30,37,31,55],[32,0,32,55],[33,0,33,21],[33,22,33,41],[33,42,33,55],[28,0,28,9],[28,10,28,23],[28,25,28,36],[28,37,28,55],[29,0,29,5],[29,6,29,23],[29,25,29,36],[29,37,29,55],[36,42,36,55],[37,42,37,55],[34,42,34,55],[35,42,35,55],[34,0,34,21],[35,0,35,21],[36,0,36,21],[37,0,37,21],[34,22,34,41],[35,22,35,41],[36,22,36,41],[37,22,37,41],[40,42,40,55],[41,42,41,55],[38,42,38,55],[39,42,39,55],[38,0,38,21],[39,0,39,21],[40,0,40,21],[41,0,41,21],[38,22,38,41],[39,22,39,41],[40,22,40,41],[41,22,41,41],[48,0,48,5],[48,6,48,23],[48,25,48,36],[48,37,48,55],[49,0,50,10],[49,11,50,24],[49,25,50,36],[49,37,50,55],[42,0,43,14],[42,15,43,55],[47,0,47,9],[47,10,47,23],[47,25,47,36],[47,37,47,55],[54,42,54,55],[55,42,55,55],[51,0,51,55],[52,0,52,21],[52,22,52,41],[52,42,52,55],[53,42,53,55],[53,0,53,21],[54,0,54,21],[55,0,55,21],[53,22,53,41],[54,22,54,41],[55,22,55,41],[60,42,60,55],[61,0,62,14],[61,15,62,55],[60,0,60,21],[60,22,60,41],[58,42,58,55],[59,42,59,55],[56,42,56,55],[57,42,57,55],[56,0,56,21],[57,0,57,21],[58,0,58,21],[59,0,59,21],[56,22,56,41],[57,22,57,41],[58,22,58,41],[59,22,59,41],[72,0,72,21],[71,22,71,41],[72,22,72,41],[65,0,65,9],[65,10,65,23],[65,25,65,36],[65,37,65,55],[66,0,66,5],[66,6,66,23],[66,25,66,36],[66,37,66,55],[67,0,68,10],[67,11,68,24],[67,25,68,36],[67,37,68,55],[69,0,69,55],[70,0,70,21],[70,22,70,41],[70,42,70,55],[71,0,71,21],[79,0,80,14],[180,4,181,27],[180,31,181,54],[79,15,80,55],[138,0,138,55],[83,0,83,9],[83,10,83,23],[83,25,83,36],[83,37,83,55],[84,0,84,5],[84,6,84,23],[84,25,84,36],[84,37,84,55],[85,0,86,10],[85,11,86,24],[85,25,86,36],[85,37,86,55],[87,0,87,55],[88,0,88,21],[157,37,157,55],[158,0,158,25],[158,26,158,27],[158,29,158,36],[158,37,158,55],[20,22,20,41],[21,22,21,41],[22,22,22,41],[23,22,23,41],[77,42,77,55],[78,42,78,55],[77,0,77,21],[78,0,78,21],[77,22,77,41],[78,22,78,41],[75,42,75,55],[76,42,76,55],[73,42,73,55],[74,42,74,55],[73,0,73,21],[74,0,74,21],[75,0,75,21],[76,0,76,21],[73,22,73,41],[74,22,74,41],[75,22,75,41],[76,22,76,41],[71,42,71,55],[72,42,72,55],[159,0,159,55],[160,0,160,55],[161,0,161,16],[161,17,161,25],[161,26,161,36],[161,37,161,55],[151,0,151,8],[151,9,151,25],[151,26,151,36],[151,37,151,55],[152,0,152,25],[152,26,152,27],[152,29,152,36],[152,37,152,55],[153,0,153,55],[139,0,139,55],[141,0,141,9],[141,10,141,54],[143,1,143,2],[145,1,145,2],[147,0,147,55],[148,0,148,53],[148,54,148,55],[150,0,150,55],[168,0,169,16],[168,17,169,25],[168,26,169,36],[168,37,169,55],[170,0,171,16],[170,17,171,25],[170,26,171,36],[170,37,171,55],[154,26,154,36],[154,37,154,55],[155,0,155,25],[155,26,155,27],[155,29,155,36],[155,37,155,55],[156,0,156,55],[157,0,157,8],[157,9,157,25],[157,26,157,36],[154,0,154,8],[154,9,154,25],[162,0,163,16],[162,17,163,25],[162,26,163,36],[162,37,163,55]]}
["SOCIAL DEVELOPMENT\nHealth Services Program\nP.O. Box 5500, Fredericton, N.B., E3B 5G4\nToll free number: 1-844-551-3015\n",null,null,null,null,null,null,null,null,null,null,null,null,null,null,null,null,null,null,null,null,null,null,null,null,null,null,null,null,null,null,null,null,null,null,null,"DÉVELOPPEMENT SOCIAL\nProgramme des services de santé\nC.P. 5500, Fredericton N.-B., E3B 5G4\nNuméro sans frais: 1-844-551-3015\n",null,null,null,null,null,null,null,null,null,null,null,null,null,null,null,null,null,null,null,null,null,{"$f":"Cover!H22","v":0}]
[null,null,null,null,null,null,null,null,null,null,null,null,null,null,null,null,null,null,null,null,null,null,null,null,null,null,null,null,null,null,null,null,null,null,null,null,null,null,null,null,null,null,null,null,null,null,null,null,null,null,null,null,null,null,null,null,null,null,{"$f":"Cover!H24","v":0}]
[]
[]
[]
["Client name:",null,null,null,null,null,null,{"$f":"Cover!H22","v":0},null,null,null,null,null,null,null,null,null,null,null,null,null,null,null,null,null,null,null,null,"Health Card #:",null,null,null,null,null,null,null,{"$f":"Cover!H24","v":0}]
[]
["MOBILITY AND ADAPTIVE EQUIPMENT LOAN PROGRAM"]
["PART A-1  APPLICATION FOR EQUIPMENT LOAN"]
[]
["Type of equipment: ",null,null,null,null,null,null,null,null,null,null,null,null,null,null,null,null,null,null,null,null,null,null,null,null,"Category:"]
["Benefit:",null,null,null,null,null,null,null,null,null,null,null,null,null,null,null,null,null,null,null,null,null,null,null,null,"Size / Dimension:"]
["Eligibility criteria numbers met **",null,null,null,null,null,null,null,null,null,null,null,null,null,null,null,null,null,null,null,null,null,null,null,null,"Preferred make & model:"]
[]
["Options / Additional Services"]
["Category",null,null,null,null,null,null,null,null,null,null,null,null,null,null,null,null,null,null,null,null,null,"Benefit",null,null,null,null,null,null,null,null,null,null,null,null,null,null,null,null,null,null,null,"ALL Eligibility criteria #’s met **(A,B,C)"]
[" ",null,null,null,null,null,null,null,null,null,null,null,null,null,null,null,null,null,null,null,null,null," "]
[" ",null,null,null,null,null,null,null,null,null,null,null,null,null,null,null,null,null,null,null,null,null," "]
[" ",null,null,null,null,null,null,null,null,null,null,null,null,null,null,null,null,null,null,null,null,null," "]
[" ",null,null,null,null,null,null,null,null,null,null,null,null,null,null,null,null,null,null,null,null,null," "]
[" ",null,null,null,null,null,null,null,null,null,null,null,null,null,null,null,null,null,null,null,null,null," "]
[" ",null,null,null,null,null,null,null,null,null,null,null,null,null,null,null,null,null,null,null,null,null," "]
[" ",null,null,null,null,null,null,null,null,null,null,null,null,null,null,null,null,null,null,null,null,null," "]
[" ",null,null,null,null,null,null,null,null,null,null,null,null,null,null,null,null,null,null,null,null,null," "]
["Additional information / Specifications"]
[]
[]
["Request #2"]
["Type of equipment: ",null,null,null,null,null,null,null,null,null,null,null,null,null,null,null,null,null,null,null,null,null,null,null,null,"Category:",null,null,null,null,null,null,null,null,null,null,null,"Please select..."]
["Benefit:",null,null,null,null,null,null,null,null,null,null,null,null,null,null,null,null,null,null,null,null,null,null,null,null,"Size / Dimension:"]
["Eligibility criteria numbers met **",null,null,null,null,null,null,null,null,null,null,null,null,null,null,null,null,null,null,null,null,null,null,null,null,"Preferred make & model:"]
[]
["Options / Additional Services"]
["Category",null,null,null,null,null,null,null,null,null,null,null,null,null,null,null,null,null,null,null,null,null,"Benefit",null,null,null,null,null,null,null,null,null,null,null,null,null,null,null,null,null,null,null,"ALL Eligibility criteria #’s met **(A,B,C)"]
[" ",null,null,null,null,null,null,null,null,null,null,null,null,null,null,null,null,null,null,null,null,null," "]
[" ",null,null,null,null,null,null,null,null,null,null,null,null,null,null,null,null,null,null,null,null,null," "]
[" ",null,null,null,null,null,null,null,null,null,null,null,null,null,null,null,null,null,null,null,null,null," "]
[" ",null,null,null,null,null,null,null,null,null,null,null,null,null,null,null,null,null,null,null,null,null," "]
[" ",null,null,null,null,null,null,null,null,null,null,null,null,null,null,null,null,null,null,null,null,null," "]
[" ",null,null,null,null,null,null,null,null,null,null,null,null,null,null,null,null,null,null,null,null,null," "]
[" ",null,null,null,null,null,null,null,null,null,null,null,null,null,null,null,null,null,null,null,null,null," "]
[" ",null,null,null,null,null,null,null,null,null,null,null,null,null,null,null,null,null,null,null,null,null," "]
["Additional information / Specifications"]
[]
[]
[]
["Request #3"]
["Type of equipment: ",null,null,null,null,null,null,null,null,null,null,null,null,null,null,null,null,null,null,null,null,null,null,null,null,"Category:"]
["Benefit:",null,null,null,null,null,null,null,null,null,null,null,null,null,null,null,null,null,null,null,null,null,null,null,null,"Size / Dimension:"]
["Eligibility criteria numbers met **",null,null,null,null,null,null,null,null,null,null,null,null,null,null,null,null,null,null,null,null,null,null,null,null,"Preferred make & model:"]
[]
["Options / Additional Services"]
["Category",null,null,null,null,null,null,null,null,null,null,null,null,null,null,null,null,null,null,null,null,null,"Benefit",null,null,null,null,null,null,null,null,null,null,null,null,null,null,null,null,null,null,null,"ALL Eligibility criteria #’s met **(A,B,C)"]
[]
[]
[]
[" ",null,null,null,null,null,null,null,null,null,null,null,null,null,null,null,null,null,null,null,null,null," "]
[" ",null,null,null,null,null,null,null,null,null,null,null,null,null,null,null,null,null,null,null,null,null," "]
[" ",null,null,null,null,null,null,null,null,null,null,null,null,null,null,null,null,null,null,null,null,null," "]
[" ",null,null,null,null,null,null,null,null,null,null,null,null,null,null,null,null,null,null,null,null,null," "]
[" ",null,null,null,null,null,null,null,null,null,null,null,null,null,null,null,null,null,null,null,null,null," "]
["Additional information / Specifications"]
[]
[]
["Request #4"]
["Type of equipment: ",null,null,null,null,null,null,null,null,null,null,null,null,null,null,null,null,null,null,null,null,null,null,null,null,"Category:"]
["Benefit:",null,null,null,null,null,null,null,null,null,null,null,null,null,null,null,null,null,null,null,null,null,null,null,null,"Size / Dimension:"]
["Eligibility criteria numbers met **",null,null,null,null,null,null,null,null,null,null,null,null,null,null,null,null,null,null,null,null,null,null,null,null,"Preferred make & model:"]
[]
["Options / Additional Services"]
["Category",null,null,null,null,null,null,null,null,null,null,null,null,null,null,null,null,null,null,null,null,null,"Benefit",null,null,null,null,null,null,null,null,null,null,null,null,null,null,null,null,null,null,null,"ALL Eligibility criteria #’s met **(A,B,C)"]
[" ",null,null,null,null,null,null,null,null,null,null,null,null,null,null,null,null,null,null,null,null,null," "]
[" ",null,null,null,null,null,null,null,null,null,null,null,null,null,null,null,null,null,null,null,null,null," "]
[" ",null,null,null,null,null,null,null,null,null,null,null,null,null,null,null,null,null,null,null,null,null," "]
[" ",null,null,null,null,null,null,null,null,null,null,null,null,null,null,null,null,null,null,null,null,null," "]
[" ",null,null,null,null,null,null,null,null,null,null,null,null,null,null,null,null,null,null,null,null,null," "]
[" ",null,null,null,null,null,null,null,null,null,null,null,null,null,null,null,null,null,null,null,null,null," "]
[" ",null,null,null,null,null,null,null,null,null,null,null,null,null,null,null,null,null,null,null,null,null," "]
[" ",null,null,null,null,null,null,null,null,null,null,null,null,null,null,null,null,null,null,null,null,null," "]
["Additional information / Specifications"]
[]
[]
["Request #5"]
["Type of equipment: ",null,null,null,null,null,null,null,null,null,null,null,null,null,null,null,null,null,null,null,null,null,null,null,null,"Category:"]
["Benefit:",null,null,null,null,null,"Select after category...",null,null,null,null,null,null,null,null,null,null,null,null,null,null,null,null,null,null,"Size / Dimension:"]
["Eligibility criteria numbers met **",null,null,null,null,null,null,null,null,null,null,null,null,null,null,null,null,null,null,null,null,null,null,null,null,"Preferred make & model:"]
[]
["Options / Additional Services"]
["Category",null,null,null,null,null,null,null,null,null,null,null,null,null,null,null,null,null,null,null,null,null,"Benefit",null,null,null,null,null,null,null,null,null,null,null,null,null,null,null,null,null,null,null,"ALL Eligibility criteria #’s met **(A,B,C)"]
[" "]
[" ",null,null,null,null,null,null,null,null,null,null,null,null,null,null,null,null,null,null,null,null,null," "]
[" ",null,null,null,null,null,null,null,null,null,null,null,null,null,null,null,null,null,null,null,null,null," "]
[" ",null,null,null,null,null,null,null,null,null,null,null,null,null,null,null,null,null,null,null,null,null," "]
[" ",null,null,null,null,null,null,null,null,null,null,null,null,null,null,null,null,null,null,null,null,null," "]
[" ",null,null,null,null,null,null,null,null,null,null,null,null,null,null,null,null,null,null,null,null,null," "]
[" ",null,null,null,null,null,null,null,null,null,null,null,null,null,null,null,null,null,null,null,null,null," "]
[" ",null,null,null,null,null,null,null,null,null,null,null,null,null,null,null,null,null,null,null,null,null," "]
["Additional information / Specifications"]
[]
[]
["Request #6"]
["Type of equipment: ",null,null,null,null,null,null,null,null,null,null,null,null,null,null,null,null,null,null,null,null,null,null,null,null,"Category:",null,null,null,null,null,null,null,null,null,null,null,"Please select..."]
["Benefit:",null,null,null,null,null,"Select after category...",null,null,null,null,null,null,null,null,null,null,null,null,null,null,null,null,null,null,"Size / Dimension:"]
["Eligibility criteria numbers met **",null,null,null,null,null,null,null,null,null,null,null,null,null,null,null,null,null,null,null,null,null,null,null,null,"Preferred make & model:"]
[]
["Options / Additional Services"]
["Category",null,null,null,null,null,null,null,null,null,null,null,null,null,null,null,null,null,null,null,null,null,"Benefit",null,null,null,null,null,null,null,null,null,null,null,null,null,null,null,null,null,null,null,"ALL Eligibility criteria #’s met **(A,B,C)"]
[" ",null,null,null,null,null,null,null,null,null,null,null,null,null,null,null,null,null,null,null,null,null," "]
[" ",null,null,null,null,null,null,null,null,null,null,null,null,null,null,null,null,null,null,null,null,null," "]
[" ",null,null,null,null,null,null,null,null,null,null,null,null,null,null,null,null,null,null,null,null,null," "]
[" ",null,null,null,null,null,null,null,null,null,null,null,null,null,null,null,null,null,null,null,null,null," "]
[" ",null,null,null,null,null,null,null,null,null,null,null,null,null,null,null,null,null,null,null,null,null," "]
[" ",null,null,null,null,null,null,null,null,null,null,null,null,null,null,null,null,null,null,null,null,null," "]
[" ",null,null,null,null,null,null,null,null,null,null,null,null,null,null,null,null,null,null,null,null,null," "]
[" ",null,null,null,null,null,null,null,null,null,null,null,null,null,null,null,null,null,null,null,null,null," "]
["Additional information / Specifications"]
[]
[]
["Request #7"]
["Type of equipment: ",null,null,null,null,null,null,null,null,null,null,null,null,null,null,null,null,null,null,null,null,null,null,null,null,"Category:"]
["Benefit:",null,null,null,null,null,null,null,null,null,null,null,null,null,null,null,null,null,null,null,null,null,null,null,null,"Size / Dimension:"]
["Eligibility criteria numbers met **",null,null,null,null,null,null,null,null,null,null,null,null,null,null,null,null,null,null,null,null,null,null,null,null,"Preferred make & model:"]
[]
["Options / Additional Services"]
["Category",null,null,null,null,null,null,null,null,null,null,null,null,null,null,null,null,null,null,null,null,null,"Benefit",null,null,null,null,null,null,null,null,null,null,null,null,null,null,null,null,null,null,null,"ALL Eligibility criteria #’s met **(A,B,C)"]
[]
[]
[]
[]
[]
[]
[]
[]
["Additional information / Specifications"]
[]
[]
[]
[]
["** IF all eligibility criteria have not been met, you may request consideration of an exception by completing Part D."]
["ESNB TRIAL EQUIPMENT"]
[]
["Therapist's Name:"]
[]
[null,null,null,null,"Equipment was available which met the needs of my client based upon SD Criteria."]
[]
[null,null,null,null,"Trial with ALL ESNB equipment was successful and ALL of the equipment will be used by my client long term.  "]
[]
["TRIAL EQUIPMENT IS BEING RETURNED TO:"]
[]
[]
["ESNB TRIAL EQUIPMENT BEING RETURNED"]
["Trial Equipment:",null,null,null,null,null,null,null,null,null,null,null,null,null,null,null,null,null,null,null,null,null,null,null,null,null,"ESNB Inventory #"]
["Supplier has been contacted to pick up equipment?",null,null,null,null,null,null,null,null,null,null,null,null,null,null,null,null,null,null,null,null,null,null,null,null,null,null,null,null,"Date of contact:"]
[]
["Trial Equipment:",null,null,null,null,null,null,null,null,null,null,null,null,null,null,null,null,null,null,null,null,null,null,null,null,null,"ESNB Inventory #"]
["Supplier has been contacted to pick up equipment?",null,null,null,null,null,null,null,null,null,null,null,null,null,null,null,null,null,null,null,null,null,null,null,null,null,null,null,null,"Date of contact:"]
[]
["Trial Equipment:",null,null,null,null,null,null,null,null,null,null,null,null,null,null,null,null,null,null,null,null,null,null,null,null,null,"ESNB Inventory #"]
["Supplier has been contacted to pick up equipment?",null,null,null,null,null,null,null,null,null,null,null,null,null,null,null,null,null,null,null,null,null,null,null,null,null,null,null,null,"Date of contact:"]
[]
["ESNB EQUIPMENT NO LONGER IN USE"]
["Equipment",null,null,null,null,null,null,null,null,null,null,null,null,null,null,null,null,"ESNB Inventory #",null,null,null,null,null,null,null,null,"Returning to ESNB?",null,null,null,null,null,null,null,null,null,null,"If no, please indicate reason:"]
[]
[]
[]
[]
[]
[]
[]
[]
[]
[]
[]
["THERAPIST'S SIGNATURE"]
[]
[null,"By signing and dating this request, I confirm that I have completed an assessment on the above noted client and at this time, the prescribed equipment meets the client's basic needs within the parameters of the Mobility and Adaptive Equipment Loan Program."]
[]
[]
[]
[]
[]
[]
[null,null,null,null,"Therapist's name",null,null,null,null,null,null,null,null,null,null,null,null,null,null,null,null,null,null,null,null,null,null,null,null,null,null,"Date"]

{"sheet":"A-2","index":4,"n_rows":162,"n_cols":59,"rows_kept":162,"cut":false,"hidden":true,"merged":[[0,52,0,55],[0,0,3,21],[0,36,3,51],[5,0,5,6],[5,7,5,27],[5,28,5,35],[5,36,5,55],[68,11,69,55],[7,0,7,55],[8,0,8,55],[10,1,11,54],[13,1,14,54],[18,0,20,55],[66,10,66,23],[66,25,66,36],[66,37,66,55],[67,0,67,5],[22,0,23,11],[22,12,23,30],[24,12,25,30],[24,0,25,11],[24,31,25,40],[24,41,25,55],[22,41,23,55],[22,31,23,40],[57,0,60,21],[57,36,60,51],[74,42,74,55],[71,0,71,21],[71,22,71,41],[71,42,71,55],[72,42,72,55],[73,42,73,55],[72,0,72,21],[73,0,73,21],[74,0,74,21],[72,22,72,41],[73,22,73,41],[74,22,74,41],[70,0,70,55],[66,0,66,9],[67,37,67,55],[62,0,62,6],[62,7,62,27],[27,0,31,55],[68,0,69,10],[62,28,62,35],[62,36,62,55],[67,6,67,23],[67,25,67,36],[80,0,81,14],[80,15,81,55],[82,47,82,55],[84,0,84,9],[84,10,84,23],[84,25,84,36],[84,37,84,55],[79,42,79,55],[79,0,79,21],[79,22,79,41],[77,42,77,55],[78,42,78,55],[75,42,75,55],[76,42,76,55],[75,0,75,21],[76,0,76,21],[77,0,77,21],[78,0,78,21],[75,22,75,41],[76,22,76,41],[77,22,77,41],[78,22,78,41],[88,0,88,55],[89,0,89,21],[89,22,89,41],[89,42,89,55],[90,42,90,55],[85,0,85,5],[85,6,85,23],[85,25,85,36],[85,37,85,55],[86,0,87,10],[86,11,87,55],[90,0,90,21],[90,22,90,41],[93,42,93,55],[94,42,94,55],[91,42,91,55],[92,42,92,55],[91,0,91,21],[92,0,92,21],[93,0,93,21],[94,0,94,21],[91,22,91,41],[92,22,92,41],[93,22,93,41],[94,22,94,41],[100,47,100,55],[97,42,97,55],[98,0,99,14],[98,15,99,55],[95,42,95,55],[96,42,96,55],[95,0,95,21],[96,0,96,21],[97,0,97,21],[95,22,95,41],[96,22,96,41],[97,22,97,41],[116,0,116,9],[116,10,116,23],[116,25,116,36],[116,37,116,55],[117,0,117,5],[117,6,117,23],[117,25,117,36],[117,37,117,55],[118,0,119,10],[118,11,119,55],[123,42,123,55],[124,42,124,55],[120,0,120,55],[121,0,121,21],[121,22,121,41],[121,42,121,55],[122,42,122,55],[122,0,122,21],[123,0,123,21],[124,0,124,21],[122,22,122,41],[123,22,123,41],[124,22,124,41],[129,42,129,55],[130,0,131,14],[130,15,131,55],[129,0,129,21],[129,22,129,41],[127,42,127,55],[128,42,128,55],[125,42,125,55],[126,42,126,55],[125,0,125,21],[126,0,126,21],[127,0,127,21],[128,0,128,21],[125,22,125,41],[126,22,126,41],[127,22,127,41],[128,22,128,41],[135,0,135,5],[135,6,135,23],[135,25,135,36],[135,37,135,55],[136,0,137,10],[136,11,137,55],[140,0,140,21],[140,22,140,41],[132,47,132,55],[134,0,134,9],[134,10,134,23],[134,25,134,36],[134,37,134,55],[141,0,141,21],[142,0,142,21],[143,0,143,21],[144,0,144,21],[141,22,141,41],[142,22,142,41],[143,22,143,41],[144,22,144,41],[138,0,138,55],[139,0,139,21],[139,22,139,41],[139,42,139,55],[140,42,140,55],[159,1,160,29],[16,22,16,28],[159,31,160,54],[153,0,153,55],[155,1,155,2],[158,1,158,2],[150,47,150,55],[152,0,152,55],[147,42,147,55],[148,0,149,14],[148,15,149,55],[145,42,145,55],[146,42,146,55],[145,0,145,21],[146,0,146,21],[147,0,147,21],[145,22,145,41],[146,22,146,41],[147,22,147,41],[155,3,158,54],[143,42,143,55],[144,42,144,55],[141,42,141,55],[142,42,142,55]]}
["SOCIAL DEVELOPMENT\nHealth Services Program\nP.O. Box 5500, Fredericton, N.B., E3B 5G4\nToll free number: 1-844-551-3015\n",null,null,null,null,null,null,null,null,null,null,null,null,null,null,null,null,null,null,null,null,null,null,null,null,null,null,null,null,null,null,null,null,null,null,null,"DÉVELOPPEMENT SOCIAL\nProgramme des services de santé\nC.P. 5500, Fredericton N.-B., E3B 5G4\nNuméro sans frais: 1-844-551-3015\n",null,null,null,null,null,null,null,null,null,null,null,null,null,null,null,null,null,null,null,null,null,{"$f":"Cover!H22","v":0}]
[null,null,null,null,null,null,null,null,null,null,null,null,null,null,null,null,null,null,null,null,null,null,null,null,null,null,null,null,null,null,null,null,null,null,null,null,null,null,null,null,null,null,null,null,null,null,null,null,null,null,null,null,null,null,null,null,null,null,{"$f":"Cover!H24","v":0}]
[]
[]
[]
["Client name:",null,null,null,null,null,null,{"$f":"Cover!H22","v":0},null,null,null,null,null,null,null,null,null,null,null,null,null,null,null,null,null,null,null,null,"Health Card #:",null,null,null,null,null,null,null,{"$f":"Cover!H24","v":0}]
[]
["MOBILITY AND ADAPTIVE EQUIPMENT LOAN PROGRAM"]
["PART A-2  APPLICATION FOR COST SHARING"]
[]
["•","Please refer to the MAELP Cost Sharing Policy and Procedures before completing this application.  "]
[]
[]
["•","Any requests for FSCD children (600's) whose families have private insurance MUST be submitted to the child's social worker for financial approval BEFORE Health Services is able to process the request. "]
[]
[]
["Part I - to be completed by the client"]
[]
["I am requesting assistance from the Health Services Program to obtain the equipment indicated in this request. I have enclosed a copy of the Pre-determination letter from the other insuring agency indicating their pre-approval and I am requesting coverage of the balance of the cost. "]
[]
[]
[]
["Equipment",null,null,null,null,null,null,null,null,null,null,null,null,null,null,null,null,null,null,null,null,null,null,null,null,null,null,null,null,null,null,"Total cost"]
[]
["Other insuring agency:",null,null,null,null,null,null,null,null,null,null,null,null,null,null,null,null,null,null,null,null,null,null,null,null,null,null,null,null,null,null,"Amount of their pre-approval:"]
[]
[]
["Options that ARE NOT a benefit and /or for which the client does not qualify can be added to the equipment that has been cost shared on, HOWEVER, the cost of these options will be deducted from the quoted cost for the piece of equipment and cost sharing will apply to the eligible portion of the equipment only.  ALL available funds from the private insurance will be applied to the equipment that are benefits through the MAELP and that the client qualifies for.  "]
[]
[]
[]
[]
["I agree to the following terms and conditions: "]
[null,"•","I agree to care for this equipment as instructed"]
[null,"•","I will have all repairs and maintenance completed by a supplier that is currently under contract with Health Services"]
[null,"•","I agree to operate this equipment safely"]
[null,"•","I agree to not abuse or misuse this equipment in any way"]
[]
["I am aware that repairs and maintenance will be eligible for payment through the Health Services Program so long as my"]
["Health card remains active and has the appropriate coverage for these services. "]
[]
[]
["Client signature",null,null,null,null,null,null,null,null,null,null,null,null,null,null,null,null,null,null,null,null,null,null,null,null,null,null,null,"Witness 2"]
[null,null,null,null,null,null,null,null,null,null,null,null,null,"OR"]
[]
[]
["Legal guardian 1",null,null,null,null,null,null,null,null,null,null,null,null,null,null,null,null,null,null,null,null,null,null,null,null,null,null,null,"Date"]
[]
["1.","If someone other than the client signs this agreement, they are agreeing on the client's behalf to uphold all terms and "]
[null,"conditions mentioned above.  A legal guardian’s signature is only required when the client is unable to sign themselves.   "]
[]
[null,"An administrator of a Long Term Care facility may also sign for a client, if neither the client nor the legal guardian are able."]
[null,"When this happens, the Therapist must include a Part D to explain why neither the client nor the client’s"]
[null,"legal guardian/next of kin is able to sign.  "]
[2,"A witness is only required when the client signs with an “X” or a Stamp.  "]
[]
[]
["SOCIAL DEVELOPMENT\nHealth Services Program\nP.O. Box 5500, Fredericton, N.B., E3B 5G4\nToll free number: 1-844-551-3015\n",null,null,null,null,null,null,null,null,null,null,null,null,null,null,null,null,null,null,null,null,null,null,null,null,null,null,null,null,null,null,null,null,null,null,null,"DÉVELOPPEMENT SOCIAL\nProgramme des services de santé\nC.P. 5500, Fredericton N.-B., E3B 5G4\nNuméro sans frais: 1-844-551-3015\n"]
[]
[]
[]
[]
["Client name:",null,null,null,null,null,null,{"$f":"Cover!H22","v":0},null,null,null,null,null,null,null,null,null,null,null,null,null,null,null,null,null,null,null,null,"Health Card #:",null,null,null,null,null,null,null,{"$f":"Cover!H24","v":0}]
[]
["Part II - To be completed by an Occupational Therapist or Physiotherapist."]
[]
["Type of equipment: ",null,null,null,null,null,null,null,null,null,null,null,null,null,null,null,null,null,null,null,null,null,null,null,null,"Category:"]
["Benefit:",null,null,null,null,null,null,null,null,null,null,null,null,null,null,null,null,null,null,null,null,null,null,null,null,"Make & model"]
["Eligibility criteria numbers met **"]
[]
["Options / Additional Services"]
["Category",null,null,null,null,null,null,null,null,null,null,null,null,null,null,null,null,null,null,null,null,null,"Benefit",null,null,null,null,null,null,null,null,null,null,null,null,null,null,null,null,null,null,null,"ALL Eligibility Criteria #’s met ** (A,B,C)"]
[" ",null,null,null,null,null,null,null,null,null,null,null,null,null,null,null,null,null,null,null,null,null," "]
[" ",null,null,null,null,null,null,null,null,null,null,null,null,null,null,null,null,null,null,null,null,null," "]
[" ",null,null,null,null,null,null,null,null,null,null,null,null,null,null,null,null,null,null,null,null,null," "]
[" ",null,null,null,null,null,null,null,null,null,null,null,null,null,null,null,null,null,null,null,null,null," "]
[" ",null,null,null,null,null,null,null,null,null,null,null,null,null,null,null,null,null,null,null,null,null," "]
[" ",null,null,null,null,null,null,null,null,null,null,null,null,null,null,null,null,null,null,null,null,null," "]
[" ",null,null,null,null,null,null,null,null,null,null,null,null,null,null,null,null,null,null,null,null,null," "]
[" ",null,null,null,null,null,null,null,null,null,null,null,null,null,null,null,null,null,null,null,null,null," "]
["Additional information / Specifications"]
[]
[]
["Request #2"]
["Type of equipment: ",null,null,null,null,null,null,null,null,null,null,null,null,null,null,null,null,null,null,null,null,null,null,null,null,"Category:"]
["Benefit:",null,null,null,null,null,null,null,null,null,null,null,null,null,null,null,null,null,null,null,null,null,null,null,null,"Make & model"]
["Eligibility criteria numbers met **"]
[]
["Options / Additional Services"]
["Category",null,null,null,null,null,null,null,null,null,null,null,null,null,null,null,null,null,null,null,null,null,"Benefit",null,null,null,null,null,null,null,null,null,null,null,null,null,null,null,null,null,null,null,"ALL Eligibility Criteria #’s met ** (A,B,C)"]
[]
[" ",null,null,null,null,null,null,null,null,null,null,null,null,null,null,null,null,null,null,null,null,null," "]
[" ",null,null,null,null,null,null,null,null,null,null,null,null,null,null,null,null,null,null,null,null,null," "]
[" ",null,null,null,null,null,null,null,null,null,null,null,null,null,null,null,null,null,null,null,null,null," "]
[" ",null,null,null,null,null,null,null,null,null,null,null,null,null,null,null,null,null,null,null,null,null," "]
[" ",null,null,null,null,null,null,null,null,null,null,null,null,null,null,null,null,null,null,null,null,null," "]
[" ",null,null,null,null,null,null,null,null,null,null,null,null,null,null,null,null,null,null,null,null,null," "]
[" ",null,null,null,null,null,null,null,null,null,null,null,null,null,null,null,null,null,null,null,null,null," "]
["Additional information / Specifications"]
[]
[]
[]
[]
[]
[]
[]
[]
[]
[]
[]
[]
[]
[]
[]
[]
["Request #3"]
["Type of equipment: ",null,null,null,null,null,null,null,null,null,null,null,null,null,null,null,null,null,null,null,null,null,null,null,null,"Category:"]
["Benefit:",null,null,null,null,null,null,null,null,null,null,null,null,null,null,null,null,null,null,null,null,null,null,null,null,"Make & model"]
["Eligibility criteria numbers met **"]
[]
["Options / Additional Services"]
["Category",null,null,null,null,null,null,null,null,null,null,null,null,null,null,null,null,null,null,null,null,null,"Benefit",null,null,null,null,null,null,null,null,null,null,null,null,null,null,null,null,null,null,null,"ALL Eligibility Criteria #’s met ** (A,B,C)"]
[]
[]
[]
[]
[]
[]
[]
[]
["Additional information / Specifications"]
[]
[]
["Request #4"]
["Type of equipment: ",null,null,null,null,null,null,null,null,null,"Complex Ambulation Aids",null,null,null,null,null,null,null,null,null,null,null,null,null,null,"Category:"]
["Benefit:",null,null,null,null,null,null,null,null,null,null,null,null,null,null,null,null,null,null,null,null,null,null,null,null,"Make & model"]
["Eligibility criteria numbers met **"]
[]
["Options / Additional Services"]
["Category",null,null,null,null,null,null,null,null,null,null,null,null,null,null,null,null,null,null,null,null,null,"Benefit",null,null,null,null,null,null,null,null,null,null,null,null,null,null,null,null,null,null,null,"Eligibility criteria #'s met **"]
[]
[]
[" ",null,null,null,null,null,null,null,null,null,null,null,null,null,null,null,null,null,null,null,null,null," "]
[" ",null,null,null,null,null,null,null,null,null,null,null,null,null,null,null,null,null,null,null,null,null," "]
[" ",null,null,null,null,null,null,null,null,null,null,null,null,null,null,null,null,null,null,null,null,null," "]
[" ",null,null,null,null,null,null,null,null,null,null,null,null,null,null,null,null,null,null,null,null,null," "]
[" ",null,null,null,null,null,null,null,null,null,null,null,null,null,null,null,null,null,null,null,null,null," "]
[" ",null,null,null,null,null,null,null,null,null,null,null,null,null,null,null,null,null,null,null,null,null," "]
["Additional information / Specifications"]
[]
[]
[]
["**IF all eligibility criteria have not been met, you may request consideration of an exception by completing Part D."]
["THERAPIST'S SIGNATURE"]
[]
[null,null,null,"By signing and dating this request, I confirm that I have completed an assessment on the above noted client and at this time, the prescribed equipment meets the clients basic needs within the parameters of the Mobility and Adaptive Equipment Loan Program."]
[]
[]
[]
[]
[]
[null,"Therapist's name",null,null,null,null,null,null,null,null,null,null,null,null,null,null,null,null,null,null,null,null,null,null,null,null,null,null,null,null,null,"Date"]

{"sheet":"A-3","index":5,"n_rows":171,"n_cols":59,"rows_kept":171,"cut":false,"hidden":true,"merged":[[168,3,169,25],[168,30,169,52],[160,0,160,55],[162,1,162,2],[162,3,163,54],[165,1,165,2],[165,3,166,54],[155,42,155,55],[156,0,157,14],[156,15,157,55],[155,0,155,21],[155,22,155,41],[158,48,158,55],[153,42,153,55],[154,42,154,55],[151,42,151,55],[152,42,152,55],[151,0,151,21],[152,0,152,21],[153,0,153,21],[154,0,154,21],[151,22,151,41],[152,22,152,41],[153,22,153,41],[154,22,154,41],[141,0,141,5],[141,6,141,23],[141,25,141,36],[141,37,141,55],[142,0,143,10],[142,11,143,24],[142,25,143,36],[142,37,143,55],[140,0,140,9],[140,10,140,23],[140,25,140,36],[140,37,140,55],[149,42,149,55],[150,42,150,55],[146,0,146,55],[147,0,147,21],[147,22,147,41],[147,42,147,55],[148,42,148,55],[148,0,148,21],[149,0,149,21],[150,0,150,21],[148,22,148,41],[149,22,149,41],[150,22,150,41],[137,48,137,55],[130,42,130,55],[131,42,131,55],[128,42,128,55],[129,42,129,55],[128,0,128,21],[129,0,129,21],[130,0,130,21],[131,0,131,21],[128,22,128,41],[129,22,129,41],[130,22,130,41],[131,22,131,41],[134,42,134,55],[135,0,136,14],[135,15,136,55],[132,42,132,55],[133,42,133,55],[132,0,132,21],[133,0,133,21],[134,0,134,21],[132,22,132,41],[133,22,133,41],[134,22,134,41],[125,0,125,55],[126,0,126,21],[126,22,126,41],[126,42,126,55],[127,42,127,55],[120,0,120,5],[120,6,120,23],[120,25,120,36],[120,37,120,55],[121,0,122,10],[121,11,122,24],[121,25,122,36],[121,37,122,55],[127,0,127,21],[127,22,127,41],[119,0,119,9],[119,10,119,23],[119,25,119,36],[119,37,119,55],[113,42,113,55],[114,0,115,14],[114,15,115,55],[113,0,113,21],[113,22,113,41],[116,48,116,55],[99,0,99,5],[99,6,99,23],[99,25,99,36],[99,37,99,55],[100,0,101,10],[100,11,101,24],[100,25,101,36],[100,37,101,55],[98,0,98,9],[98,10,98,23],[98,25,98,36],[98,37,98,55],[108,22,108,41],[111,42,111,55],[112,42,112,55],[109,42,109,55],[110,42,110,55],[109,0,109,21],[110,0,110,21],[111,0,111,21],[112,0,112,21],[109,22,109,41],[110,22,110,41],[111,22,111,41],[112,22,112,41],[95,48,95,55],[88,42,88,55],[89,42,89,55],[86,42,86,55],[87,42,87,55],[86,0,86,21],[87,0,87,21],[88,0,88,21],[89,0,89,21],[86,22,86,41],[87,22,87,41],[88,22,88,41],[89,22,89,41],[92,42,92,55],[93,0,94,14],[93,15,94,55],[90,42,90,55],[91,42,91,55],[90,0,90,21],[91,0,91,21],[92,0,92,21],[90,22,90,41],[91,22,91,41],[92,22,92,41],[83,0,83,55],[84,0,84,21],[84,22,84,41],[84,42,84,55],[85,42,85,55],[78,0,78,5],[78,6,78,23],[78,25,78,36],[78,37,78,55],[79,0,80,10],[79,11,80,24],[79,25,80,36],[79,37,80,55],[85,0,85,21],[85,22,85,41],[81,0,82,10],[81,11,82,24],[81,25,82,36],[81,37,82,55],[18,0,21,55],[64,0,64,6],[64,7,64,27],[64,28,64,35],[64,36,64,55],[77,0,77,9],[77,10,77,23],[77,25,77,36],[77,37,77,55],[59,0,62,21],[59,36,62,51],[15,0,17,55],[0,0,3,21],[0,36,3,51],[5,0,5,6],[5,7,5,27],[5,28,5,35],[5,36,5,55],[7,0,7,55],[8,0,8,55],[10,0,11,55],[0,52,0,55],[13,20,13,26],[144,0,145,10],[144,11,145,24],[144,25,145,36],[144,37,145,55],[123,0,124,10],[123,11,124,24],[123,25,124,36],[123,37,124,55],[102,0,103,10],[102,11,103,24],[102,25,103,36],[102,37,103,55],[107,42,107,55],[108,42,108,55],[104,0,104,55],[105,0,105,21],[105,22,105,41],[105,42,105,55],[106,42,106,55],[106,0,106,21],[107,0,107,21],[108,0,108,21],[106,22,106,41],[107,22,107,41]]}
["SOCIAL DEVELOPMENT\nHealth Services Program\nP.O. Box 5500, Fredericton, N.B., E3B 5G4\nToll free number: 1-844-551-3015\n",null,null,null,null,null,null,null,null,null,null,null,null,null,null,null,null,null,null,null,null,null,null,null,null,null,null,null,null,null,null,null,null,null,null,null,"DÉVELOPPEMENT SOCIAL\nProgramme des services de santé\nC.P. 5500, Fredericton N.-B., E3B 5G4\nNuméro sans frais: 1-844-551-3015\n",null,null,null,null,null,null,null,null,null,null,null,null,null,null,null,null,null,null,null,null,null,{"$f":"Cover!H22","v":0}]
[null,null,null,null,null,null,null,null,null,null,null,null,null,null,null,null,null,null,null,null,null,null,null,null,null,null,null,null,null,null,null,null,null,null,null,null,null,null,null,null,null,null,null,null,null,null,null,null,null,null,null,null,null,null,null,null,null,null,{"$f":"Cover!H24","v":0}]
[]
[]
[]
["Client name:",null,null,null,null,null,null,{"$f":"Cover!H22","v":0},null,null,null,null,null,null,null,null,null,null,null,null,null,null,null,null,null,null,null,null,"Health Card #:",null,null,null,null,null,null,null,{"$f":"Cover!H24","v":0}]
[]
["MOBILITY AND ADAPTIVE EQUIPMENT LOAN PROGRAM"]
["PART A-3  APPLICATION FOR EQUIPMENT MAINTENANCE"]
[]
["*** Please refer to the Equipment Maintenance Policy & Procedures before completing this form ***"]
[]
[]
["Part I - to be completed by client"]
[]
["I am applying for coverage of current or future repairs, modifications and/or the provision of additional related components for equipment which was not provided to me through the Health Services Program and is listed in Part II of the form. "]
[]
[]
["I understand that if the application is approved, I will remain the owner of this equipment. With this approval, I understand that repairs, maintenance and/or provision of additional related equipment or components will only be eligible for approval as long as my Health Card remains valid with the appropriate coverage, and I agree to the following terms and conditions."]
[]
[]
[]
[null,null,"•",null,"I confirm that I own this equipment."]
[null,null,"•",null,"I confirm that I have no other equipment that meets this need."]
[null,null,"•",null,"I confirm that I will care for this equipment as per the instructions received from my therapist and/or an"]
[null,null,null,null,"authorized supplier."]
[null,null,"•",null,"I confirm that I will have all repairs, maintenance and other related equipment completed/provided by an"]
[null,null,null,null,"authorized supplier who is currently under contract with Health Services."]
[null,null,"•",null,"I confirm that I will operate this equipment safely."]
[null,null,"•",null,"I confirm that I will not abuse or misuse the equipment in any way."]
[null,null,"•",null,"I understand that this agreement will terminate if the equipment is replaced or if I am no longer eligible"]
[null,null,null,null,"for the equipment as per the parameters of the program. "]
[]
[]
[]
["Client signature",null,null,null,null,null,null,null,null,null,null,null,null,null,null,null,null,null,null,null,null,null,null,null,null,null,null,null,"Witness 2"]
[null,null,null,null,null,null,null,null,null,null,null,null,null,"OR"]
[]
[]
["Legal guardian 1",null,null,null,null,null,null,null,null,null,null,null,null,null,null,null,null,null,null,null,null,null,null,null,null,null,null,null,"Date"]
[]
["1.","If someone other than the client signs this agreement, they are agreeing on the client's behalf to uphold all terms and "]
[null,"conditions mentioned above.  A legal guardian’s signature is only required when the client is unable to sign themselves.   "]
[]
[null,"An administrator of a Long Term Care facility may also sign for a client, if neither the client nor the legal guardian are able."]
[null,"When this happens, the Therapist must include a Part D to explain why neither the client nor the client’s"]
[null,"legal guardian/next of kin is able to sign.  "]
[2,"A witness is only required when the client signs with an “X” or a Stamp.  "]
[]
[]
[]
[]
[]
[]
[]
[]
[]
[]
[]
["SOCIAL DEVELOPMENT\nHealth Services Program\nP.O. Box 5500, Fredericton, N.B., E3B 5G4\nToll free number: 1-844-551-3015\n",null,null,null,null,null,null,null,null,null,null,null,null,null,null,null,null,null,null,null,null,null,null,null,null,null,null,null,null,null,null,null,null,null,null,null,"DÉVELOPPEMENT SOCIAL\nProgramme des services de santé\nC.P. 5500, Fredericton N.-B., E3B 5G4\nNuméro sans frais: 1-844-551-3015\n"]
[]
[]
[]
[]
["Client name:",null,null,null,null,null,null,{"$f":"Cover!H22","v":0},null,null,null,null,null,null,null,null,null,null,null,null,null,null,null,null,null,null,null,null,"Health Card #:",null,null,null,null,null,null,null,{"$f":"Cover!H24","v":0}]
[]
["Part II - to be completed by an Occupational Therapist or Physiotherapist"]
[]
["1.",null,"Please complete this section for the equipment and/or component(s) that was not provided by the Health Services"]
[null,null,"program and that the client would like to have maintained."]
[null,null,"If additional modifications and/or components are required for the equipment listed in this form, Part A-1 –"]
[null,null,"Application for Equipment Loan of the ERF must be completed. "]
["2.",null,"All options and components related to the equipment that the client wants to have maintained MUST be "]
[null,null,"disclosed on this application, even if they do not require attention at the time of the application. If these options "]
[null,null,"or related components have Health Services eligibility criteria, the criteria met must be provided on the application."]
[]
[]
["Type of equipment: ",null,null,null,null,null,null,null,null,null,null,null,null,null,null,null,null,null,null,null,null,null,null,null,null,"Category:"]
["Benefit:",null,null,null,null,null,null,null,null,null,null,null,null,null,null,null,null,null,null,null,null,null,null,null,null,"Make & model"]
["Serial number:",null,null,null,null,null,null,null,null,null,null,null,null,null,null,null,null,null,null,null,null,null,null,null,null,"Eligibility criteria #'s met **:"]
[]
["Age of equipment",null,null,null,null,null,null,null,null,null,null,null,null,null,null,null,null,null,null,null,null,null,null,null,null,"Name of the equipment purchaser:"]
[]
["Options / Additional Services"]
["Category",null,null,null,null,null,null,null,null,null,null,null,null,null,null,null,null,null,null,null,null,null,"Benefit",null,null,null,null,null,null,null,null,null,null,null,null,null,null,null,null,null,null,null,"ALL Eligibility criteria #’s met ** (A,B,C)"]
[" ",null,null,null,null,null,null,null,null,null,null,null,null,null,null,null,null,null,null,null,null,null," "]
[" ",null,null,null,null,null,null,null,null,null,null,null,null,null,null,null,null,null,null,null,null,null," "]
[" ",null,null,null,null,null,null,null,null,null,null,null,null,null,null,null,null,null,null,null,null,null," "]
[" ",null,null,null,null,null,null,null,null,null,null,null,null,null,null,null,null,null,null,null,null,null," "]
[" ",null,null,null,null,null,null,null,null,null,null,null,null,null,null,null,null,null,null,null,null,null," "]
[" ",null,null,null,null,null,null,null,null,null,null,null,null,null,null,null,null,null,null,null,null,null," "]
[" ",null,null,null,null,null,null,null,null,null,null,null,null,null,null,null,null,null,null,null,null,null," "]
[" ",null,null,null,null,null,null,null,null,null,null,null,null,null,null,null,null,null,null,null,null,null," "]
["Additional information / Specifications"]
[]
["**IF all eligibility criteria have not been met, you may request consideration of an exception by completing Part D."]
[]
["Request #2"]
["Type of equipment: ",null,null,null,null,null,null,null,null,null,null,null,null,null,null,null,null,null,null,null,null,null,null,null,null,"Category:"]
["Benefit:",null,null,null,null,null,null,null,null,null,null,null,null,null,null,null,null,null,null,null,null,null,null,null,null,"Make & model"]
["Serial number:",null,null,null,null,null,null,null,null,null,null,null,null,null,null,null,null,null,null,null,null,null,null,null,null,"Eligibility criteria #'s met **:"]
[]
["Age of equipment",null,null,null,null,null,null,null,null,null,null,null,null,null,null,null,null,null,null,null,null,null,null,null,null,"Name of the equipment purchaser:"]
[]
["Options / Additional Services"]
["Category",null,null,null,null,null,null,null,null,null,null,null,null,null,null,null,null,null,null,null,null,null,"Benefit",null,null,null,null,null,null,null,null,null,null,null,null,null,null,null,null,null,null,null,"ALL Eligibility criteria #’s met ** (A,B,C)"]
[]
[" ",null,null,null,null,null,null,null,null,null,null,null,null,null,null,null,null,null,null,null,null,null," "]
[" ",null,null,null,null,null,null,null,null,null,null,null,null,null,null,null,null,null,null,null,null,null," "]
[" ",null,null,null,null,null,null,null,null,null,null,null,null,null,null,null,null,null,null,null,null,null," "]
[" ",null,null,null,null,null,null,null,null,null,null,null,null,null,null,null,null,null,null,null,null,null," "]
[" ",null,null,null,null,null,null,null,null,null,null,null,null,null,null,null,null,null,null,null,null,null," "]
[" ",null,null,null,null,null,null,null,null,null,null,null,null,null,null,null,null,null,null,null,null,null," "]
[" ",null,null,null,null,null,null,null,null,null,null,null,null,null,null,null,null,null,null,null,null,null," "]
["Additional information / Specifications"]
[]
["**IF all eligibility criteria have not been met, you may request consideration of an exception by completing Part D."]
[]
["Request #3"]
["Type of equipment: ",null,null,null,null,null,null,null,null,null,null,null,null,null,null,null,null,null,null,null,null,null,null,null,null,"Category:"]
["Benefit:",null,null,null,null,null,null,null,null,null,null,null,null,null,null,null,null,null,null,null,null,null,null,null,null,"Make & model"]
["Serial number:",null,null,null,null,null,null,null,null,null,null,null,null,null,null,null,null,null,null,null,null,null,null,null,null,"Eligibility criteria #'s met **:"]
[]
["Age of equipment",null,null,null,null,null,null,null,null,null,null,null,null,null,null,null,null,null,null,null,null,null,null,null,null,"Name of the equipment purchaser:"]
[]
["Options / Additional Services"]
["Category",null,null,null,null,null,null,null,null,null,null,null,null,null,null,null,null,null,null,null,null,null,"Benefit",null,null,null,null,null,null,null,null,null,null,null,null,null,null,null,null,null,null,null,"ALL Eligibility criteria #’s met ** (A,B,C)"]
[" ",null,null,null,null,null,null,null,null,null,null,null,null,null,null,null,null,null,null,null,null,null," "]
[" ",null,null,null,null,null,null,null,null,null,null,null,null,null,null,null,null,null,null,null,null,null," "]
[" ",null,null,null,null,null,null,null,null,null,null,null,null,null,null,null,null,null,null,null,null,null," "]
[" ",null,null,null,null,null,null,null,null,null,null,null,null,null,null,null,null,null,null,null,null,null," "]
[" ",null,null,null,null,null,null,null,null,null,null,null,null,null,null,null,null,null,null,null,null,null," "]
[" ",null,null,null,null,null,null,null,null,null,null,null,null,null,null,null,null,null,null,null,null,null," "]
[" ",null,null,null,null,null,null,null,null,null,null,null,null,null,null,null,null,null,null,null,null,null," "]
[" ",null,null,null,null,null,null,null,null,null,null,null,null,null,null,null,null,null,null,null,null,null," "]
["Additional information / Specifications"]
[]
["**IF all eligibility criteria have not been met, you may request consideration of an exception by completing Part D."]
[]
["Request #4"]
["Type of equipment: ",null,null,null,null,null,null,null,null,null,null,null,null,null,null,null,null,null,null,null,null,null,null,null,null,"Category:"]
["Benefit:",null,null,null,null,null,"Select after category...",null,null,null,null,null,null,null,null,null,null,null,null,null,null,null,null,null,null,"Make & model"]
["Serial number:",null,null,null,null,null,null,null,null,null,null,null,null,null,null,null,null,null,null,null,null,null,null,null,null,"Eligibility criteria #'s met **:"]
[]
["Age of equipment",null,null,null,null,null,null,null,null,null,null,null,null,null,null,null,null,null,null,null,null,null,null,null,null,"Name of the equipment purchaser:"]
[]
["Options / Additional Services"]
["Category",null,null,null,null,null,null,null,null,null,null,null,null,null,null,null,null,null,null,null,null,null,"Benefit",null,null,null,null,null,null,null,null,null,null,null,null,null,null,null,null,null,null,null,"ALL Eligibility criteria #’s met ** (A,B,C)"]
[]
[]
[]
[]
[]
[]
[]
[]
["Additional information / Specifications"]
[]
["**IF all eligibility criteria have not been met, you may request consideration of an exception by completing Part D."]
[]
["THERAPIST'S SIGNATURE"]
[]
[null,null,null,"I confirm that the equipment listed above meets this client's current medical needs and that this equipment is either currently in good repair or only in need of minor repairs."]
[]
[]
[null,null,null,"By signing and dating this form, I confirm that the equipment listed above meets the client’s current medical needs and that this equipment is either currently in good repair or only in need of minor repairs.  "]
[]
[]
[]
[]
[null,null,null,"Therapist's name",null,null,null,null,null,null,null,null,null,null,null,null,null,null,null,null,null,null,null,null,null,null,null,null,null,null,"Date"]

{"sheet":"A-4","index":6,"n_rows":39,"n_cols":59,"rows_kept":39,"cut":false,"hidden":true,"merged":[[32,0,32,55],[34,1,35,54],[37,1,37,29],[27,0,28,16],[27,17,28,25],[27,26,28,36],[27,37,28,55],[29,0,30,16],[29,17,30,25],[29,26,30,36],[29,37,30,55],[37,31,37,54],[23,0,24,16],[23,17,24,25],[23,26,24,36],[23,37,24,55],[25,0,26,16],[25,17,26,25],[25,26,26,36],[25,37,26,55],[19,0,20,16],[19,17,20,25],[19,26,20,36],[19,37,20,55],[21,0,22,16],[21,17,22,25],[21,26,22,36],[21,37,22,55],[15,26,16,36],[15,37,16,55],[17,0,18,16],[17,17,18,25],[17,26,18,36],[17,37,18,55],[15,0,16,16],[15,17,16,25],[0,0,3,21],[0,36,3,51],[5,0,5,6],[5,7,5,27],[5,28,5,35],[5,36,5,55],[0,52,0,55],[7,0,7,55],[8,0,8,55],[14,0,14,16],[14,17,14,25],[14,26,14,36],[14,37,14,55]]}
["SOCIAL DEVELOPMENT\nHealth Services Program\nP.O. Box 5500, Fredericton, N.B., E3B 5G4\nToll free number: 1-844-551-3015\n",null,null,null,null,null,null,null,null,null,null,null,null,null,null,null,null,null,null,null,null,null,null,null,null,null,null,null,null,null,null,null,null,null,null,null,"DÉVELOPPEMENT SOCIAL\nProgramme des services de santé\nC.P. 5500, Fredericton N.-B., E3B 5G4\nNuméro sans frais: 1-844-551-3015\n",null,null,null,null,null,null,null,null,null,null,null,null,null,null,null,null,null,null,null,null,null,{"$f":"Cover!H22","v":0}]
[null,null,null,null,null,null,null,null,null,null,null,null,null,null,null,null,null,null,null,null,null,null,null,null,null,null,null,null,null,null,null,null,null,null,null,null,null,null,null,null,null,null,null,null,null,null,null,null,null,null,null,null,null,null,null,null,null,null,{"$f":"Cover!H24","v":0}]
[]
[]
[]
["Client name:",null,null,null,null,null,null,{"$f":"Cover!H22","v":0},null,null,null,null,null,null,null,null,null,null,null,null,null,null,null,null,null,null,null,null,"Health Card #:",null,null,null,null,null,null,null,{"$f":"Cover!H24","v":0}]
[]
["MOBILITY AND ADAPTIVE EQUIPMENT LOAN PROGRAM"]
["PART A-4  APPLICATION TO PURCHASE TRIAL EQUIPMENT"]
[]
[null,"·",null,"Please refer to the MAELP Trial Equipment Purchase Policy and Procedures before completing this Application."]
[null,"·",null,"In addition to this Application, the Therapist must also complete the A-1 - Application for Equipment Loan"]
[null,null,null,"section of the Equipment Request Form."]
[]
["Equipment (make/model)",null,null,null,null,null,null,null,null,null,null,null,null,null,null,null,null,"Serial #",null,null,null,null,null,null,null,null,"Date manufactured",null,null,null,null,null,null,null,null,null,null,"New or demo equipment"]
[]
[]
[]
[]
[]
[]
[]
[]
[]
[]
[]
[]
[]
[]
[]
[]
[]
["THERAPIST'S SIGNATURE"]
[]
[null,"By signing and dating this request, I confirm that I have completed an assessment on the above noted client with the trial equipment specified above and it meets the client’s basic needs exactly as it is.  "]
[]
[]
[]
[null,"Therapist's name",null,null,null,null,null,null,null,null,null,null,null,null,null,null,null,null,null,null,null,null,null,null,null,null,null,null,null,null,null,"Date"]

{"sheet":"A-5","index":7,"n_rows":129,"n_cols":59,"rows_kept":129,"cut":false,"hidden":true,"merged":[[42,42,42,55],[41,0,41,21],[45,42,45,55],[43,42,43,55],[44,42,44,55],[41,22,41,41],[41,42,41,55],[42,0,42,21],[43,0,43,21],[44,0,44,21],[45,0,45,21],[42,22,42,41],[43,22,43,41],[44,22,44,41],[45,22,45,41],[102,0,102,16],[102,37,102,55],[103,0,104,16],[103,37,104,55],[94,42,94,55],[95,42,95,55],[103,17,104,26],[105,0,106,16],[105,37,106,55],[101,0,101,55],[96,0,97,14],[96,15,97,55],[105,17,106,26],[102,17,102,26],[102,27,102,36],[103,27,104,36],[105,27,106,36],[92,42,92,55],[93,42,93,55],[92,0,92,21],[93,0,93,21],[94,0,94,21],[95,0,95,21],[92,22,92,41],[93,22,93,41],[94,22,94,41],[95,22,95,41],[86,0,86,55],[90,42,90,55],[91,42,91,55],[88,42,88,55],[89,42,89,55],[89,0,89,21],[90,0,90,21],[91,0,91,21],[89,22,89,41],[90,22,90,41],[91,22,91,41],[78,37,78,55],[79,0,79,5],[79,6,79,23],[79,25,79,36],[79,37,79,55],[84,0,85,10],[84,11,85,24],[84,25,85,36],[84,37,85,55],[70,42,70,55],[65,42,65,55],[66,42,66,55],[67,42,67,55],[68,42,68,55],[69,42,69,55],[65,0,65,21],[66,0,66,21],[67,0,67,21],[68,0,68,21],[69,0,69,21],[70,0,70,21],[65,22,65,41],[66,22,66,41],[67,22,67,41],[68,22,68,41],[69,22,69,41],[70,22,70,41],[64,42,64,55],[63,0,63,55],[64,0,64,21],[64,22,64,41],[61,0,62,10],[61,11,62,24],[61,25,62,36],[61,37,62,55],[57,0,58,10],[57,11,58,24],[57,25,58,36],[57,37,58,55],[59,0,60,10],[59,11,60,24],[59,25,60,36],[59,37,60,55],[56,0,56,5],[56,6,56,23],[56,25,56,36],[56,37,56,55],[46,42,46,55],[47,42,47,55],[48,42,48,55],[49,42,49,55],[50,0,51,14],[50,15,51,55],[55,0,55,9],[55,10,55,23],[55,25,55,36],[55,37,55,55],[46,0,46,21],[47,0,47,21],[48,0,48,21],[49,0,49,21],[46,22,46,41],[47,22,47,41],[48,22,48,41],[49,22,49,41],[38,0,39,10],[38,11,39,24],[38,25,39,36],[38,37,39,55],[40,0,40,55],[36,0,37,10],[36,11,37,24],[36,25,37,36],[36,37,37,55],[33,0,33,5],[33,6,33,23],[33,25,33,36],[33,37,33,55],[34,0,35,10],[34,11,35,24],[34,25,35,36],[34,37,35,55],[28,0,29,14],[28,15,29,55],[32,0,32,9],[32,10,32,23],[32,25,32,36],[32,37,32,55],[27,42,27,55],[25,42,25,55],[26,42,26,55],[25,0,25,21],[26,0,26,21],[27,0,27,21],[25,22,25,41],[26,22,26,41],[27,22,27,41],[23,42,23,55],[24,42,24,55],[21,42,21,55],[22,42,22,55],[21,0,21,21],[22,0,22,21],[23,0,23,21],[24,0,24,21],[21,22,21,41],[22,22,22,41],[23,22,23,41],[24,22,24,41],[18,0,18,55],[19,0,19,21],[19,22,19,41],[19,42,19,55],[20,42,20,55],[12,0,13,10],[12,11,13,24],[12,25,13,36],[12,37,13,55],[14,0,15,10],[14,11,15,24],[14,25,15,36],[14,37,15,55],[16,0,17,10],[16,11,17,24],[16,25,17,36],[16,37,17,55],[20,0,20,21],[20,22,20,41],[11,0,11,5],[11,6,11,23],[11,25,11,36],[11,37,11,55],[0,52,0,55],[7,0,7,55],[8,0,8,55],[10,0,10,9],[10,10,10,23],[10,25,10,36],[10,37,10,55],[0,0,3,21],[0,36,3,51],[5,0,5,6],[5,7,5,27],[5,28,5,35],[5,36,5,55],[9,1,9,53],[71,22,71,41],[72,22,72,41],[88,0,88,21],[88,22,88,41],[80,25,81,36],[80,37,81,55],[82,0,83,10],[82,11,83,24],[82,25,83,36],[82,37,83,55],[71,42,71,55],[72,42,72,55],[73,0,74,14],[73,15,74,55],[80,0,81,10],[80,11,81,24],[71,0,71,21],[72,0,72,21],[87,0,87,21],[87,22,87,41],[87,42,87,55],[78,0,78,9],[78,10,78,23],[78,25,78,36],[120,0,120,55],[122,1,125,54],[126,1,127,29],[126,31,127,54],[107,37,108,55],[109,0,110,16],[109,37,110,55],[111,0,112,16],[111,37,112,55],[107,0,108,16],[107,17,108,26],[109,17,110,26],[111,17,112,26],[107,27,108,36],[109,27,110,36],[111,27,112,36]]}
["SOCIAL DEVELOPMENT\nHealth Services Program\nP.O. Box 5500, Fredericton, N.B., E3B 5G4\nToll free number: 1-844-551-3015\n",null,null,null,null,null,null,null,null,null,null,null,null,null,null,null,null,null,null,null,null,null,null,null,null,null,null,null,null,null,null,null,null,null,null,null,"DÉVELOPPEMENT SOCIAL\nProgramme des services de santé\nC.P. 5500, Fredericton N.-B., E3B 5G4\nNuméro sans frais: 1-844-551-3015\n",null,null,null,null,null,null,null,null,null,null,null,null,null,null,null,null,null,null,null,null,null,{"$f":"Cover!H22","v":0}]
[null,null,null,null,null,null,null,null,null,null,null,null,null,null,null,null,null,null,null,null,null,null,null,null,null,null,null,null,null,null,null,null,null,null,null,null,null,null,null,null,null,null,null,null,null,null,null,null,null,null,null,null,null,null,null,null,null,null,{"$f":"Cover!H24","v":0}]
[]
[]
[]
["Client name:",null,null,null,null,null,null,{"$f":"Cover!H22","v":0},null,null,null,null,null,null,null,null,null,null,null,null,null,null,null,null,null,null,null,null,"Health Card #:",null,null,null,null,null,null,null,{"$f":"Cover!H24","v":0}]
[]
["MOBILITY AND ADAPTIVE EQUIPMENT LOAN PROGRAM"]
["PART A-5  APPLICATION FOR EQUIPMENT TRANSFER"]
[null,"Please refer to the MAELP Equipment Transfer Policy and Procedures before completing this Application.  \n\nIn addition to this Application, the Therapist must also complete the A-1 - Application for Equipment Loan section of the Equipment Request Form if they are requesting additional equipment that is not being transferred."]
["Type of equipment: ",null,null,null,null,null,null,null,null,null,null,null,null,null,null,null,null,null,null,null,null,null,null,null,null,"Category:"]
["Benefit:",null,null,null,null,null,null,null,null,null,null,null,null,null,null,null,null,null,null,null,null,null,null,null,null,"Make & Model"]
["Serial number",null,null,null,null,null,null,null,null,null,null,null,null,null,null,null,null,null,null,null,null,null,null,null,null,"Eligibility criteria met (#'s) **"]
[]
["Initials of previous user:",null,null,null,null,null,null,null,null,null,null,null,null,null,null,null,null,null,null,null,null,null,null,null,null,"Health Card # of previous client "]
[]
["ESNB \nEquipment #",null,null,null,null,null,null,null,null,null,null,null,null,null,null,null,null,null,null,null,null,null,null,null,null,"Has equipment been cleaned & disinfected?"]
[]
["Options** / Additional Services"]
["Category",null,null,null,null,null,null,null,null,null,null,null,null,null,null,null,null,null,null,null,null,null,"Benefit",null,null,null,null,null,null,null,null,null,null,null,null,null,null,null,null,null,null,null,"ALL Eligibility criteria #s met ** (A,B,C)"]
[" ",null,null,null,null,null,null,null,null,null,null,null,null,null,null,null,null,null,null,null,null,null," "]
[" ",null,null,null,null,null,null,null,null,null,null,null,null,null,null,null,null,null,null,null,null,null," "]
[" ",null,null,null,null,null,null,null,null,null,null,null,null,null,null,null,null,null,null,null,null,null," "]
[" ",null,null,null,null,null,null,null,null,null,null,null,null,null,null,null,null,null,null,null,null,null," "]
[" ",null,null,null,null,null,null,null,null,null,null,null,null,null,null,null,null,null,null,null,null,null," "]
[" ",null,null,null,null,null,null,null,null,null,null,null,null,null,null,null,null,null,null,null,null,null," "]
[" ",null,null,null,null,null,null,null,null,null,null,null,null,null,null,null,null,null,null,null,null,null," "]
[" ",null,null,null,null,null,null,null,null,null,null,null,null,null,null,null,null,null,null,null,null,null," "]
["Additional information / Specifications"]
[]
["**IF all eligibility criteria have not been met, you may request consideration of an exception by completing Part D."]
["Request #2"]
["Type of equipment: ",null,null,null,null,null,null,null,null,null,null,null,null,null,null,null,null,null,null,null,null,null,null,null,null,"Category:"]
["Benefit:",null,null,null,null,null,null,null,null,null,null,null,null,null,null,null,null,null,null,null,null,null,null,null,null,"Make & Model"]
["Serial number",null,null,null,null,null,null,null,null,null,null,null,null,null,null,null,null,null,null,null,null,null,null,null,null,"Eligibility criteria met (#'s) **"]
[]
["Initials of previous user:",null,null,null,null,null,null,null,null,null,null,null,null,null,null,null,null,null,null,null,null,null,null,null,null,"Health Card # of previous client "]
[]
["ESNB \nEquipment #",null,null,null,null,null,null,null,null,null,null,null,null,null,null,null,null,null,null,null,null,null,null,null,null,"Has equipment been cleaned & disinfected?"]
[]
["Options / Additional Services"]
["Category",null,null,null,null,null,null,null,null,null,null,null,null,null,null,null,null,null,null,null,null,null,"Benefit",null,null,null,null,null,null,null,null,null,null,null,null,null,null,null,null,null,null,null,"ALL Eligibility criteria #s met ** (A,B,C)"]
["ADL Positioning Additional Services",null,null,null,null,null,null,null,null,null,null,null,null,null,null,null,null,null,null,null,null,null,"Please select..."]
[]
[]
[]
[]
[]
[]
[]
["Additional information / Specifications"]
[]
["**IF all eligibility criteria have not been met, you may request consideration of an exception by completing Part D."]
[]
["Request #3"]
["Type of equipment: ",null,null,null,null,null,null,null,null,null,null,null,null,null,null,null,null,null,null,null,null,null,null,null,null,"Category:"]
["Benefit:",null,null,null,null,null,null,null,null,null,null,null,null,null,null,null,null,null,null,null,null,null,null,null,null,"Make & Model"]
["Serial number",null,null,null,null,null,null,null,null,null,null,null,null,null,null,null,null,null,null,null,null,null,null,null,null,"Eligibility criteria met (#'s) **"]
[]
["Initials of previous user:",null,null,null,null,null,null,null,null,null,null,null,null,null,null,null,null,null,null,null,null,null,null,null,null,"Health Card # of previous client "]
[]
["ESNB \nEquipment #",null,null,null,null,null,null,null,null,null,null,null,null,null,null,null,null,null,null,null,null,null,null,null,null,"Has equipment been cleaned & disinfected?"]
[]
["Options / Additional Services"]
["Category",null,null,null,null,null,null,null,null,null,null,null,null,null,null,null,null,null,null,null,null,null,"Benefit",null,null,null,null,null,null,null,null,null,null,null,null,null,null,null,null,null,null,null,"ALL Eligibility criteria #s met ** (A,B,C)"]
[]
[]
[]
[]
[]
[]
[]
[]
["Additional information / Specifications"]
[]
["**IF all eligibility criteria have not been met, you may request consideration of an exception by completing Part D."]
[]
["Request #4"]
["Type of equipment: ",null,null,null,null,null,null,null,null,null,null,null,null,null,null,null,null,null,null,null,null,null,null,null,null,"Category:",null,null,null,null,null,null,null,null,null,null,null,"Please select..."]
["Benefit:",null,null,null,null,null,"Select after category...",null,null,null,null,null,null,null,null,null,null,null,null,null,null,null,null,null,null,"Make & Model"]
["Serial number",null,null,null,null,null,null,null,null,null,null,null,null,null,null,null,null,null,null,null,null,null,null,null,null,"Eligibility criteria met (#'s) **"]
[]
["Initials of previous user:",null,null,null,null,null,null,null,null,null,null,null,null,null,null,null,null,null,null,null,null,null,null,null,null,"Health Card # of previous client "]
[]
["ESNB \nEquipment #",null,null,null,null,null,null,null,null,null,null,null,null,null,null,null,null,null,null,null,null,null,null,null,null,"Has equipment been cleaned & disinfected?"]
[]
["Options / Additional Services"]
["Category",null,null,null,null,null,null,null,null,null,null,null,null,null,null,null,null,null,null,null,null,null,"Benefit",null,null,null,null,null,null,null,null,null,null,null,null,null,null,null,null,null,null,null,"ALL Eligibility criteria #s met ** (A,B,C)"]
[]
[" ",null,null,null,null,null,null,null,null,null,null,null,null,null,null,null,null,null,null,null,null,null," "]
[" ",null,null,null,null,null,null,null,null,null,null,null,null,null,null,null,null,null,null,null,null,null," "]
[" ",null,null,null,null,null,null,null,null,null,null,null,null,null,null,null,null,null,null,null,null,null," "]
[" ",null,null,null,null,null,null,null,null,null,null,null,null,null,null,null,null,null,null,null,null,null," "]
[" ",null,null,null,null,null,null,null,null,null,null,null,null,null,null,null,null,null,null,null,null,null," "]
[" ",null,null,null,null,null,null,null,null,null,null,null,null,null,null,null,null,null,null,null,null,null," "]
[" ",null,null,null,null,null,null,null,null,null,null,null,null,null,null,null,null,null,null,null,null,null," "]
["Additional information / Specifications"]
[]
["** IF all eligibility criteria have not been met, you may request consideration of an exception by completing Part D."]
[]
[]
["EQUIPMENT NO LONGER IN USE"]
["Equipment",null,null,null,null,null,null,null,null,null,null,null,null,null,null,null,null,"ESNB Equipment #",null,null,null,null,null,null,null,null,null,"Returning to ESNB?",null,null,null,null,null,null,null,null,null,"If no, please indicate reason:"]
[]
[]
[]
[]
[]
[]
[]
[]
[]
[]
[]
[]
[]
[]
[]
[]
[]
["THERAPIST'S SIGNATURE"]
[]
[null,"By signing and dating this request, I confirm that I have completed an assessment on the above noted client with the MAELP equipment noted above, and at this time, the prescribed equipment meets the client’s basic needs within the parameters of the Mobility and Adaptive Equipment Loan Program. "]
[]
[]
[]
[]
[]
[null,"Therapist's name",null,null,null,null,null,null,null,null,null,null,null,null,null,null,null,null,null,null,null,null,null,null,null,null,null,null,null,null,null,"Date"]

{"sheet":"A-6","index":8,"n_rows":118,"n_cols":59,"rows_kept":118,"cut":false,"hidden":true,"merged":[[97,42,97,55],[94,42,94,55],[95,42,95,55],[94,22,94,41],[95,22,95,41],[96,22,96,41],[97,22,97,41],[115,3,116,25],[115,30,116,52],[110,0,110,55],[112,1,112,2],[98,0,99,14],[98,15,99,55],[112,3,114,54],[92,42,92,55],[93,42,93,55],[90,42,90,55],[91,42,91,55],[90,22,90,41],[91,22,91,41],[92,22,92,41],[93,22,93,41],[96,42,96,55],[82,0,83,10],[82,11,83,24],[82,25,83,36],[82,37,83,55],[88,0,88,55],[89,0,89,21],[89,22,89,41],[89,42,89,55],[81,0,81,5],[81,6,81,23],[81,25,81,36],[81,37,81,55],[84,0,85,10],[84,11,85,24],[84,25,85,36],[84,37,85,55],[86,0,87,10],[86,11,87,55],[75,0,76,14],[75,15,76,55],[80,0,80,9],[80,10,80,23],[80,25,80,36],[80,37,80,55],[73,42,73,55],[74,42,74,55],[73,0,73,21],[74,0,74,21],[73,22,73,41],[74,22,74,41],[68,42,68,55],[65,0,65,55],[66,22,66,41],[66,42,66,55],[67,22,67,41],[68,22,68,41],[71,42,71,55],[72,42,72,55],[69,42,69,55],[70,42,70,55],[69,22,69,41],[70,22,70,41],[71,22,71,41],[72,22,72,41],[59,0,60,10],[59,11,60,24],[59,25,60,36],[59,37,60,55],[61,0,62,10],[61,11,62,24],[61,25,62,36],[61,37,62,55],[67,42,67,55],[63,0,64,10],[63,11,64,55],[51,42,51,55],[48,42,48,55],[49,42,49,55],[48,22,48,41],[49,22,49,41],[50,22,50,41],[51,22,51,41],[58,0,58,5],[58,6,58,23],[58,25,58,36],[58,37,58,55],[52,0,53,14],[52,15,53,55],[57,0,57,9],[57,10,57,23],[57,25,57,36],[57,37,57,55],[46,42,46,55],[47,42,47,55],[44,42,44,55],[45,42,45,55],[44,22,44,41],[45,22,45,41],[46,22,46,41],[47,22,47,41],[50,42,50,55],[28,22,28,41],[42,0,42,55],[43,0,43,21],[43,22,43,41],[43,42,43,55],[35,0,35,5],[35,6,35,23],[35,25,35,36],[35,37,35,55],[13,0,14,10],[13,11,14,24],[13,25,14,36],[13,37,14,55],[7,0,7,55],[8,0,8,55],[11,0,11,9],[11,10,11,23],[11,25,11,36],[11,37,11,55],[0,0,3,21],[0,36,3,51],[5,0,5,6],[5,7,5,27],[5,28,5,35],[5,36,5,55],[12,0,12,5],[12,6,12,23],[12,25,12,36],[12,37,12,55],[0,52,0,55],[9,3,9,53],[10,3,10,53],[15,0,16,10],[15,11,16,24],[15,25,16,36],[15,37,16,55],[17,0,18,10],[97,0,97,21],[96,0,96,21],[95,0,95,21],[94,0,94,21],[93,0,93,21],[92,0,92,21],[91,0,91,21],[90,0,90,21],[72,0,72,21],[71,0,71,21],[70,0,70,21],[69,0,69,21],[68,0,68,21],[67,0,67,21],[66,0,66,21],[51,0,51,21],[50,0,50,21],[49,0,49,21],[48,0,48,21],[47,0,47,21],[46,0,46,21],[45,0,45,21],[44,0,44,21],[26,0,26,21],[25,0,25,21],[24,0,24,21],[23,0,23,21],[22,0,22,21],[40,0,41,10],[40,11,41,55],[22,42,22,55],[22,22,22,41],[25,42,25,55],[26,42,26,55],[23,42,23,55],[24,42,24,55],[23,22,23,41],[24,22,24,41],[25,22,25,41],[26,22,26,41],[29,0,30,14],[29,15,30,55],[34,0,34,9],[21,0,21,21],[20,0,20,21],[19,0,19,55],[17,11,18,55],[36,0,37,10],[36,11,37,24],[36,25,37,36],[36,37,37,55],[38,0,39,10],[38,11,39,24],[38,25,39,36],[38,37,39,55],[21,42,21,55],[20,22,20,41],[20,42,20,55],[21,22,21,41],[34,10,34,23],[34,25,34,36],[34,37,34,55],[27,42,27,55],[28,42,28,55],[27,0,27,21],[28,0,28,21],[27,22,27,41]]}
["SOCIAL DEVELOPMENT\nHealth Services Program\nP.O. Box 5500, Fredericton, N.B., E3B 5G4\nToll free number: 1-844-551-3015\n",null,null,null,null,null,null,null,null,null,null,null,null,null,null,null,null,null,null,null,null,null,null,null,null,null,null,null,null,null,null,null,null,null,null,null,"DÉVELOPPEMENT SOCIAL\nProgramme des services de santé\nC.P. 5500, Fredericton N.-B., E3B 5G4\nNuméro sans frais: 1-844-551-3015\n",null,null,null,null,null,null,null,null,null,null,null,null,null,null,null,null,null,null,null,null,null,{"$f":"Cover!H22","v":0}]
[null,null,null,null,null,null,null,null,null,null,null,null,null,null,null,null,null,null,null,null,null,null,null,null,null,null,null,null,null,null,null,null,null,null,null,null,null,null,null,null,null,null,null,null,null,null,null,null,null,null,null,null,null,null,null,null,null,null,{"$f":"Cover!H24","v":0}]
[]
[]
[]
["Client name:",null,null,null,null,null,null,{"$f":"Cover!H22","v":0},null,null,null,null,null,null,null,null,null,null,null,null,null,null,null,null,null,null,null,null,"Health Card #:",null,null,null,null,null,null,null,{"$f":"Cover!H24","v":0}]
[]
["MOBILITY AND ADAPTIVE EQUIPMENT LOAN PROGRAM"]
["PART A-6  APPLICATION FOR EQUIPMENT FOR MULTIPLE USERS"]
[null,"•",null,"Please refer to the MAELP Multi-User Equipment Policy and Procedures for Adult Residential Facilities (ARF) before completing this Application."]
[null,"•",null,"In addition to this Application, the Therapist must also complete the A-1 Application for Equipment Loan section of the Equipment Request Form if they are requesting additional Equipment that is not Multi-user."]
["Type of equipment: ",null,null,null,null,null,null,null,null,null,null,null,null,null,null,null,null,null,null,null,null,null,null,null,null,"Category:"]
["Benefit:",null,null,null,null,null,null,null,null,null,null,null,null,null,null,null,null,null,null,null,null,null,null,null,null,"Size / Dimension:"]
["Eligibility criteria numbers met **:",null,null,null,null,null,null,null,null,null,null,null,null,null,null,null,null,null,null,null,null,null,null,null,null,"Make & Model:"]
[]
["Initials of primary user:",null,null,null,null,null,null,null,null,null,null,null,null,null,null,null,null,null,null,null,null,null,null,null,null,"Health Card # of primary user:"]
[]
["ESNB \nEquipment #:"]
[]
["Options / Additional Services"]
["Category",null,null,null,null,null,null,null,null,null,null,null,null,null,null,null,null,null,null,null,null,null,"Benefit",null,null,null,null,null,null,null,null,null,null,null,null,null,null,null,null,null,null,null,"Eligibility criteria #'s met (A,B,C) **"]
[" ",null,null,null,null,null,null,null,null,null,null,null,null,null,null,null,null,null,null,null,null,null," "]
[" ",null,null,null,null,null,null,null,null,null,null,null,null,null,null,null,null,null,null,null,null,null," "]
[" ",null,null,null,null,null,null,null,null,null,null,null,null,null,null,null,null,null,null,null,null,null," "]
[" ",null,null,null,null,null,null,null,null,null,null,null,null,null,null,null,null,null,null,null,null,null," "]
[" ",null,null,null,null,null,null,null,null,null,null,null,null,null,null,null,null,null,null,null,null,null," "]
[" ",null,null,null,null,null,null,null,null,null,null,null,null,null,null,null,null,null,null,null,null,null," "]
[" ",null,null,null,null,null,null,null,null,null,null,null,null,null,null,null,null,null,null,null,null,null," "]
[" ",null,null,null,null,null,null,null,null,null,null,null,null,null,null,null,null,null,null,null,null,null," "]
["Additional information / Specifications"]
[]
["**IF all eligibility criteria have not been met, you may request consideration of an exception by completing Part D."]
[]
["Request #2"]
["Type of equipment: ",null,null,null,null,null,null,null,null,null,null,null,null,null,null,null,null,null,null,null,null,null,null,null,null,"Category:",null,null,null,null,null,null,null,null,null,null,null,"Please select..."]
["Benefit:",null,null,null,null,null,"Select after category...",null,null,null,null,null,null,null,null,null,null,null,null,null,null,null,null,null,null,"Size / Dimension:"]
["Eligibility criteria numbers met **:",null,null,null,null,null,null,null,null,null,null,null,null,null,null,null,null,null,null,null,null,null,null,null,null,"Make & Model:"]
[]
["Initials of primary user:",null,null,null,null,null,null,null,null,null,null,null,null,null,null,null,null,null,null,null,null,null,null,null,null,"Health Card # of primary user:"]
[]
["ESNB \nEquipment #:"]
[]
["Options / Additional Services"]
["Category",null,null,null,null,null,null,null,null,null,null,null,null,null,null,null,null,null,null,null,null,null,"Benefit",null,null,null,null,null,null,null,null,null,null,null,null,null,null,null,null,null,null,null,"Eligibility criteria #'s met (A,B,C) **"]
[null,null,null,null,null,null,null,null,null,null,null,null,null,null,null,null,null,null,null,null,null,null,"Please select..."]
[null,null,null,null,null,null,null,null,null,null,null,null,null,null,null,null,null,null,null,null,null,null,"Please select..."]
[" ",null,null,null,null,null,null,null,null,null,null,null,null,null,null,null,null,null,null,null,null,null," "]
[" ",null,null,null,null,null,null,null,null,null,null,null,null,null,null,null,null,null,null,null,null,null," "]
[" ",null,null,null,null,null,null,null,null,null,null,null,null,null,null,null,null,null,null,null,null,null," "]
[" ",null,null,null,null,null,null,null,null,null,null,null,null,null,null,null,null,null,null,null,null,null," "]
[" ",null,null,null,null,null,null,null,null,null,null,null,null,null,null,null,null,null,null,null,null,null," "]
[" ",null,null,null,null,null,null,null,null,null,null,null,null,null,null,null,null,null,null,null,null,null," "]
["Additional information / Specifications"]
[]
["**IF all eligibility criteria have not been met, you may request consideration of an exception by completing Part D."]
[]
["Request #3"]
["Type of equipment: ",null,null,null,null,null,null,null,null,null,null,null,null,null,null,null,null,null,null,null,null,null,null,null,null,"Category:"]
["Benefit:",null,null,null,null,null,null,null,null,null,null,null,null,null,null,null,null,null,null,null,null,null,null,null,null,"Size / Dimension:"]
["Eligibility criteria numbers met **:",null,null,null,null,null,null,null,null,null,null,null,null,null,null,null,null,null,null,null,null,null,null,null,null,"Make & Model:"]
[]
["Initials of primary user:",null,null,null,null,null,null,null,null,null,null,null,null,null,null,null,null,null,null,null,null,null,null,null,null,"Health Card # of primary user:"]
[]
["ESNB \nEquipment #:"]
[]
["Options / Additional Services"]
["Category",null,null,null,null,null,null,null,null,null,null,null,null,null,null,null,null,null,null,null,null,null,"Benefit",null,null,null,null,null,null,null,null,null,null,null,null,null,null,null,null,null,null,null,"Eligibility criteria #'s met (A,B,C) **"]
[" ",null,null,null,null,null,null,null,null,null,null,null,null,null,null,null,null,null,null,null,null,null," "]
[" ",null,null,null,null,null,null,null,null,null,null,null,null,null,null,null,null,null,null,null,null,null," "]
[" ",null,null,null,null,null,null,null,null,null,null,null,null,null,null,null,null,null,null,null,null,null," "]
[" ",null,null,null,null,null,null,null,null,null,null,null,null,null,null,null,null,null,null,null,null,null," "]
[" ",null,null,null,null,null,null,null,null,null,null,null,null,null,null,null,null,null,null,null,null,null," "]
[" ",null,null,null,null,null,null,null,null,null,null,null,null,null,null,null,null,null,null,null,null,null," "]
[" ",null,null,null,null,null,null,null,null,null,null,null,null,null,null,null,null,null,null,null,null,null," "]
[" ",null,null,null,null,null,null,null,null,null,null,null,null,null,null,null,null,null,null,null,null,null," "]
["Additional information / Specifications"]
[]
["**IF all eligibility criteria have not been met, you may request consideration of an exception by completing Part D."]
[]
["Request #4"]
["Type of equipment: ",null,null,null,null,null,null,null,null,null,null,null,null,null,null,null,null,null,null,null,null,null,null,null,null,"Category:"]
["Benefit:",null,null,null,null,null,null,null,null,null,null,null,null,null,null,null,null,null,null,null,null,null,null,null,null,"Size / Dimension:"]
["Eligibility criteria numbers met **:",null,null,null,null,null,null,null,null,null,null,null,null,null,null,null,null,null,null,null,null,null,null,null,null,"Make & Model:"]
[]
["Initials of primary user:",null,null,null,null,null,null,null,null,null,null,null,null,null,null,null,null,null,null,null,null,null,null,null,null,"Health Card # of primary user:"]
[]
["ESNB \nEquipment #:"]
[]
["Options / Additional Services"]
["Category",null,null,null,null,null,null,null,null,null,null,null,null,null,null,null,null,null,null,null,null,null,"Benefit",null,null,null,null,null,null,null,null,null,null,null,null,null,null,null,null,null,null,null,"Eligibility criteria #'s met (A,B,C) **"]
[]
[]
[]
[]
[]
[]
[]
[]
["Additional information / Specifications"]
[]
["**IF all eligibility criteria have not been met, you may request consideration of an exception by completing Part D."]
[]
[]
[]
[]
[]
[]
[]
[]
[]
["THERAPIST'S SIGNATURE"]
[]
[null,null,null,"By signing and dating this request, I confirm that I have completed an assessment on the above noted client with the MAELP Equipment noted above, and at this time, the prescribed equipment meets the client’s basic needs within the parameters of the Mobility and Adaptive Equipment Loan Program. "]
[]
[]
[]
[]
[null,null,null,"Therapist's name",null,null,null,null,null,null,null,null,null,null,null,null,null,null,null,null,null,null,null,null,null,null,null,null,null,null,"Date"]

{"sheet":"B-C","index":9,"n_rows":45,"n_cols":59,"rows_kept":45,"cut":false,"hidden":false,"merged":[[16,0,16,23],[16,28,16,51],[19,0,19,23],[19,28,19,51],[22,0,22,55],[0,0,3,21],[0,36,3,51],[7,0,7,55],[9,0,12,55],[13,0,15,55],[5,0,5,6],[5,7,5,27],[5,28,5,35],[5,36,5,55],[0,52,0,55],[42,0,43,55],[41,0,41,55],[25,3,27,55],[31,3,31,54],[44,0,44,55],[39,1,39,12],[29,3,30,55],[38,1,38,24],[38,29,38,52]]}
["SOCIAL DEVELOPMENT\nHealth Services Program\nP.O. Box 5500, Fredericton, N.B., E3B 5G4\nToll free number: 1-844-551-3015\n",null,null,null,null,null,null,null,null,null,null,null,null,null,null,null,null,null,null,null,null,null,null,null,null,null,null,null,null,null,null,null,null,null,null,null,"DÉVELOPPEMENT SOCIAL\nProgramme des services de santé\nC.P. 5500, Fredericton N.-B., E3B 5G4\nNuméro sans frais: 1-844-551-3015\n",null,null,null,null,null,null,null,null,null,null,null,null,null,null,null,null,null,null,null,null,null,{"$f":"Cover!H22","v":0}]
[null,null,null,null,null,null,null,null,null,null,null,null,null,null,null,null,null,null,null,null,null,null,null,null,null,null,null,null,null,null,null,null,null,null,null,null,null,null,null,null,null,null,null,null,null,null,null,null,null,null,null,null,null,null,null,null,null,null,{"$f":"Cover!H24","v":0}]
[]
[]
[]
["Client name:",null,null,null,null,null,null,{"$f":"Cover!H22","v":0},null,null,null,null,null,null,null,null,null,null,null,null,null,null,null,null,null,null,null,null,"Health Card #:",null,null,null,null,null,null,null,{"$f":"Cover!H24","v":0}]
[]
["PART B - CONSENT TO RELEASE OF INFORMATION"]
[]
["I consent to the sharing of my/ my __________________________________________________________ (state relationship) personal health information among the following parties, including but not limited to Social Development, Easter Seals NB, my occupational therapist(s) or physiotherapist(s) and the chosen authorized service supplier. I understand that I may revoke my consent at any time by submitting a request in writing to Social Development."]
[]
[]
[]
["This authorization allows all parties to communicate by telephone, fax, email, memo and text for the purpose of obtaining the equipment prescribed through any of the Mobility and Adaptive Equipment Loan Programs (Basic Adaptive, Complex Adaptive, Mobility Aids and Postural Supports).\n\nThis consent is valid for a maximum of 24 months as long as there is no change to the equipment prescribed."]
[]
[]
[]
["Client signature",null,null,null,null,null,null,null,null,null,null,null,null,null,null,null,null,null,null,null,null,null,null,null,null,null,null,null,"Witness 3"]
[null,null,null,null,null,null,null,null,null,null,null,null,null,null,null,null,null,null,null,null,null,null,null,"OR"]
[]
["Legal guardian 2",null,null,null,null,null,null,null,null,null,null,null,null,null,null,null,null,null,null,null,null,null,null,null,null,null,null,null,"Date"]
[]
["PART C - EQUIPMENT LOAN AGREEMENT"]
["I understand and agree with the following terms and conditions:"]
[]
[null,"1.",null,"The equipment provided to me is the property of Social Development and is being loaned to me for as long as it is required.  At such a time that the equipment is replaced or that I am no longer eligible for the equipment as per the parameters of the program, I or someone on my behalf will contact Easter Seals NB at 1-888-280-8155 to determine if it must be returned to the program . 1"]
[]
[]
[null,"2.",null,"The equipment must be cared for as instructed by my therapist and/or service supplier."]
[null,"3.",null,"Repairs and maintenance will be provided at no cost by the Mobility and Adaptive Equipment Loan Program, as long as my Health Card remains active with the correct coverage and I have upheld the tems of this agreement."]
[]
[null,"4.",null,"All installation, service, maintenance, repairs, and assembly/disassembly must be completed by an authorized service supplier.  "]
[null,"5.",null,"This equipment must be operated safely at all times."]
[null,"6.",null,"This equipment must not be abused or misused in any way."]
[]
[]
[null,"Client signature",null,null,null,null,null,null,null,null,null,null,null,null,null,null,null,null,null,null,null,null,null,null,null,null,null,null,null,"Witness 3"]
[null,null,null,null,null,null,null,null,null,null,null,null,null,null,null,null,null,null,null,null,null,null,null,"OR"]
[]
[null,"Legal guardian 2",null,null,null,null,null,null,null,null,null,null,null,null,null,null,null,null,null,null,null,null,null,null,null,null,null,null,null,"Date"]
[]
["1. Any cost associated with the return of the equipment to ESNB will be taken care of by the Health Services Program."]
["2. If someone other than the client has signed this form, then they are agreeing on the client's behalf to accept responsibility for upholding the terms of the equipment loan.\n\nAn administrator of a Long Term Care facility may also sign for a client, if neither the client nor the legal guardian are able. When this happens, the Therapist must include a note in Part D to explain why neither the client nor the client's legal guardian/next of kin is able to sign."]
[]
["3. A witness is only required when the client signs with an “X” or a Stamp. A legal guardian's signature is only required when the client is unable to sign themsleves."]

{"sheet":"D","index":10,"n_rows":14,"n_cols":59,"rows_kept":14,"cut":false,"hidden":false,"merged":[[15,0,52,55],[56,0,57,55],[7,0,7,55],[0,0,3,21],[0,36,3,51],[5,0,5,6],[5,7,5,27],[5,28,5,35],[5,36,5,55],[0,52,0,55],[9,2,10,55],[11,2,11,55],[12,2,12,55],[13,2,14,53]]}
["SOCIAL DEVELOPMENT\nHealth Services Program\nP.O. Box 5500, Fredericton, N.B., E3B 5G4\nToll free number: 1-844-551-3015\n",null,null,null,null,null,null,null,null,null,null,null,null,null,null,null,null,null,null,null,null,null,null,null,null,null,null,null,null,null,null,null,null,null,null,null,"DÉVELOPPEMENT SOCIAL\nProgramme des services de santé\nC.P. 5500, Fredericton N.-B., E3B 5G4\nNuméro sans frais: 1-844-551-3015\n",null,null,null,null,null,null,null,null,null,null,null,null,null,null,null,null,null,null,null,null,null,{"$f":"Cover!H22","v":0}]
[null,null,null,null,null,null,null,null,null,null,null,null,null,null,null,null,null,null,null,null,null,null,null,null,null,null,null,null,null,null,null,null,null,null,null,null,null,null,null,null,null,null,null,null,null,null,null,null,null,null,null,null,null,null,null,null,null,null,{"$f":"Cover!H24","v":0}]
[]
[]
[]
["Client name:",null,null,null,null,null,null,{"$f":"Cover!H22","v":0},null,null,null,null,null,null,null,null,null,null,null,null,null,null,null,null,null,null,null,null,"Health Card #:",null,null,null,null,null,null,null,{"$f":"Cover!H24","v":0}]
[]
["PART D - ADDITIONAL INFORMATION"]
[]
["•",null,"Please refer to How to Complete Part D of the Equipment Request Form section in the MAELP Guide for assistance in completing Part D."]
[]
["•",null,"Only equipment that is the most cost effective and meets the client’s current basic needs and that is"]
[null,null,"within the parameters of the MAELP will be considered for approval, even as an exception."]
["•",null,"The following can be used as an aid in completing Part D:  Write a brief introduction to your client (medical, functional, environmental).  Indicate each essential criteria which are not met and why, and/or provide the answers to the Essential Details questions specific to any Specialized Option(s) requested."]

{"sheet":"VL123","index":11,"n_rows":20,"n_cols":2,"rows_kept":20,"cut":false,"hidden":true,"merged":[]}
["123DD"]
["Complex Ambulation Aids","ComplexAmbulationAids"]
["Complex Bathroom Aids","ComplexBathroomAids"]
["Complex Stability Aids","ComplexStabilityAids"]
["Complex Transfer Aids","ComplexTransferAids"]
["Therapeutic Sleep Aids","TherapeuticSleepAids"]
["ADL Positioning","ADLPositioning"]
[]
["123VList"]
["Ambulation aids","AmbulationAids"]
["Bathing aids","BathingAids"]
["Toileting aids","ToiletingAids"]
["Standing aids","StandingAids"]
["Transfer aids","TransferAids"]
["Patient lifts","PatientLifts"]
["Hospital beds","HospitalSleepBeds"]
["Reactive support surface","ReactiveSupport"]
["Active support surface","ActiveSupport"]
["Pressure redistributing surface","PressureRedistributing"]
["Positioning for ADL performance","PositioningforADL"]

{"sheet":"Sheet1","index":12,"n_rows":18,"n_cols":2,"rows_kept":18,"cut":false,"hidden":true,"merged":[]}
["Complex Ambulation Aids","ComplexAbulationAidsB"]
["Complex Bathroom Aids","ComplexBathroomAidsB"]
["Complex Stability Aids","ComplexStabilityAidsB"]
["Complex Transfer Aids","ComplexTransferAidsB"]
["Therapeutic Sleep Aids","TherapeuticSleepAidsB"]
["ADL Positioning","ADLPositioningB"]
[]
["Complex Ambulation Aids Options","ComplexAmbulationAidsOptions"]
["Complex Ambulation Aids Additional Services","ComplexAmbulationAidsAdditionalServices"]
["Complex Bathroom Aids Options","ComplexBathroomAidsOptions"]
["Complex Bathroom Aids Additional Services","ComplexBathroomAidsAdditionalServices"]
["Stability Aids Options","StabilityAidsOptions"]
["Stability Aids Additional Services","StabilityAidsAdditionalServices"]
["Transfer Aids Options","TransferAidsOptions"]
["Transfer Aid Additional Services","TransferAidsAdditionalServices"]
["Therapeutic Sleep Aid Options","TherapeuticSleepAidsOptions"]
["Therapeutic Sleep Aid Additional Services","TherapeuticSleepAidsAdditionalServices"]
["ADL Positioning Additional Services","ADLPos"]

{"sheet":"L123","index":13,"n_rows":20,"n_cols":14,"rows_kept":20,"cut":false,"hidden":true,"merged":[]}
["List1A",null,null,"ComplexAmbulationAids",null,"ComplexBathroomAids",null,"ComplexStabilityAids",null,"ComplexTransferAids",null,"TherapeuticSleepAids",null,"ADLPositioning"]
["Complex Ambulation Aids","ComplexAmbulationAids",null,"Ambulation aids",null,"Bathing aids",null,"Standing aids",null,"Transfer aids",null,"Hospital beds",null,"Pressure redistributing surface"]
["Complex Bathroom Aids","ComplexBathroomAids",null,null,null,"Toileting aids",null,null,null,"Patient lifts",null,"Reactive support surface",null,"Positioning for ADL performance"]
["Complex Stability Aids","ComplexStabilityAids",null,null,null,null,null,null,null,null,null,"Active support surface"]
["Complex Transfer Aids","ComplexTransferAids"]
["Therapeutic Sleep Aids","TherapeuticSleepAids",null,"AmbulationAids",null,"BathingAids",null,"StandingAids",null,"TransferAids",null,"HospitalSleepBeds",null,"PressureRedistributing"]
["ADL Positioning","ADLPositioning",null,"Gait trainer",null,"Complex bath chair",null,"Full upright stander",null,"Free Standing Trapeze Bar",null,"Bariatric Hospital Bed",null,"Surface for toileting or bathing"]
[null,null,null,"Specialized walker",null,"Bath lift",null,"Multiposition/supine/prone ",null,"Non-powered sit-to-stand transfer aid",null,"Non Stnd. Hospital Bed"]
["Ambulation aids","AmbulationAids",null,null,null,null,null,"Sit-to-stand stander",null,null,null,"Specialized Enclosed Bed"]
["Bathing aids","BathingAids",null,null,null,"ToiletingAids",null,null,null,"PatientLifts",null,"Standard Hospital Bed",null,"PositioningforADL"]
["Toileting aids","ToiletingAids",null,null,null,"Toilet seat mounted bidet",null,null,null,"Lift Tracking",null,null,null,"ADL Positioning (Feeder Seat/Insert)"]
["Standing aids","StandingAids",null,null,null,"Complex toilet mounted support",null,null,null,"Power Hydraulic Floor Lift",null,"ReactiveSupport"]
["Transfer aids","TransferAids",null,null,null,"Complex shower commode",null,null,null,"Portable Overhead Lift Unit",null,"High Density Foam Mattress"]
["Patient lifts","PatientLifts",null,null,null,"Complex shower chair, self-propelled",null,null,null,"Slings",null,"Mattress Overlay-Positioning"]
["Hospital beds","HospitalSleepBeds",null,null,null,"Shower commode with tilt",null,null,null,null,null,"Non-Powered Support Surface"]
["Reactive support surface","ReactiveSupport",null,null,null,null,null,null,null,null,null,"Overlay-Pressure Redistribute"]
["Active support surface","ActiveSupport"]
["Pressure redistributing cushions","PressureRedistributing",null,null,null,null,null,null,null,null,null,"ActiveSupport"]
["Positioning for ADL performance","PositioningforADL",null,null,null,null,null,null,null,null,null,"Powered active support suface"]
[null,null,null,null,null,null,null,null,null,null,null,"Multizone surface"]

{"sheet":"L145","index":14,"n_rows":26,"n_cols":14,"rows_kept":26,"cut":false,"hidden":true,"merged":[]}
["CAList1-B",null,null,"ComplexAbulationAidsB",null,"ComplexBathroomAidsB",null,"ComplexStabilityAidsB",null,"ComplexTransferAidsB",null,"TherapeuticSleepAidsB",null,"ADLPositioningB"]
["Complex Ambulation Aids","ComplexAbulationAidsB",null,"Standard Complex Ambulation Aids Options",null,"Complex Bathroom Aids Options",null,"Standard Complex Stability Aids Options ",null,"Transfer Aids Options",null,"Standard Therapeutic Sleep Aids Options",null,"ADL Positioning Additional Services"]
["Complex Bathroom Aids","ComplexBathroomAidsB",null,"Specialized Complex Ambulation Aids Options",null,"Complex Bathroom Aids Additional Services",null,"Specialized Complex Stability Aids Options",null,"Transfer Aid Additional Services",null,"Therapeutic Sleep Aid Additional Services",null,"ADL Positioning Aids Options"]
["Complex Stability Aids","ComplexStabilityAidsB",null,"Complex Ambulation Aids Additional Services",null,null,null,"Stability Aids Additional Services"]
["Complex Transfer Aids","ComplexTransferAidsB"]
["Therapeutic Sleep Aids","TherapeuticSleepAidsB"]
["ADL Positioning","ADLPositioningB",null,"StandCompAmbAidsOpt",null,"ComplexBathroomAidsOptions",null,"StanCompStabAidsOpt",null,"TransferAidsOptions",null,"TherapeuticSleepAidsOptions",null,"ADLPos"]
[null,null,null,"Head Support",null,"Mobility frame",null,"Foot Positioning and Support",null,"Additional tracking",null,"2nd Mattress Cover/Top Cover",null,"Modifications"]
["Complex Ambulation Aids Additional Services","ComplexAmbulationAidsAddServ",null,"Lateral Supports",null,"Additional positioning options",null,"Head Support",null,"Extra Wide Spreader Bar ",null,"Additional Bed Rails",null,"Rentals"]
["Standard Complex Ambulation Aids Options","StandCompAmbAidsOpt",null,"Lower Extremity Support",null,"Rotary Transfer Disc",null,"L/E Positioning and Knee Support",null,"Track longer than 3 meters",null,"Bed Rail Padding Cover"]
["Specialized Complex Ambulation Aids Options","SpecCompAmbAidsOpt",null,"Trunk Support",null,"Specialized Seat",null,"Pelvic Support",null,"Portable extension straps",null,"Bed Width/Length Extension",null,"ADLAidsPosOpt"]
["Complex Bathroom Aids Options","ComplexBathroomAidsOptions",null,"Upper Extremity Support",null,"Tub Stand/Base",null,"Trunk Support/Anterior ",null,"TransferAidsAdditionalServices",null,"Bolster",null,"Additional cushion cover(s)"]
["Complex Bathroom Aids Additional Services","ComplexBathroomAidsAdditionalServices",null,null,null,null,null,"Trunk Support/Laterals",null,"Modifications",null,"Footboard Controls"]
["Standard Complex Stability Aids Options ","StanCompStabAidsOpt",null,"SpecCompAmbAidsOpt",null,"ComplexBathroomAidsAdditionalServices",null,"U/E Support/Tray ",null,"Rentals",null,"Incontinence Cover"]
["Specialized Complex Stability Aids Options","SpecCompStabAidsOpt",null,"Ankle Prompt",null,"Modifications",null,"SpecCompStabAidsOpt",null,null,null,"Larger Mattress Cover"]
["Stability Aids Additional Services","StabilityAidsAdditionalServices",null,"Attendant Guide Bar",null,null,null,"Specialized Back",null,null,null,"Medical Device Attachment"]
["Transfer Aids Options","TransferAidsOptions",null,"Chest Prompt",null,null,null,"Specialized L/E Positioning",null,null,null,"Modular Therapeutic Sections"]
["Transfer Aid Additional Services","TransferAidsAdditionalServices",null,"Dynamic Frame Components",null,null,null,"Specialized Pelvic Hip Positioning",null,null,null,"Overbed Attached Trapeze Bar"]
["Standard Therapeutic Sleep Aids Options","TherapeuticSleepAidsOptions",null,"Multi-Positional or Saddle Seat",null,null,null,"Specialized Seat",null,null,null,"Specialized Bed Padding"]
["Therapeutic Sleep Aid Additional Services","TherapeuticSleepAidsAdditionalServices",null,"Non-Standard Caster",null,null,null,"Specialized Swivel Seat",null,null,null,"Specialized Bed Windows"]
["ADL Positioning Additional Services","ADLPos",null,"Thigh Prompt",null,null,null,"Specialized Tray"]
["ADL Positioning Aids Options","ADLAidsPosOpt",null,"Special Size Seat",null,null,null,null,null,null,null,"TherapeuticSleepAidsAdditionalServices"]
[null,null,null,null,null,null,null,"StabilityAidsAdditionalServices",null,null,null,"Modifications"]
[null,null,null,"ComplexAmbulationAidsAdditionalServices",null,null,null,"Rentals",null,null,null,"Rentals"]
[null,null,null,"Modifications"]
[null,null,null,"Rental"]